OrganisationNameLabel,OrganisationURI,EffectiveDate,Directorate/ServiceWhereExpenditureIncurred,ServiceCategoryLabel,ServiceCategoryURI,Supplier,SupplierRegisteredCompany Number,PaymentDate,TransactionNumber,NetAmount,IrrecoverableVAT,PurposeOfSpend,ProcurementClassification:ProclassLabel,ProcrementClassification:ProClassCode
South Lakeland District Council,http://opendatacommunities.org/id/district-council/south-lakeland,31/03/2021,Business Support Community Services,Cultural Environmental Regulatory & Planning Services,http://opendatacommunities.org/def/concept/finance/sercop/objective/104,CV COMPONENTS,,29/03/2021,154520,251.93,0,Parts,381500,Vehicle Mgt Parts
South Lakeland District Council,http://opendatacommunities.org/id/district-council/south-lakeland,31/03/2021,Business Support Community Services,Cultural Environmental Regulatory & Planning Services,http://opendatacommunities.org/def/concept/finance/sercop/objective/104,S J Bargh,532272,03/03/2021,149125,253.6,0,MOTs,381400,Vehicle Mgt Maintenance
South Lakeland District Council,http://opendatacommunities.org/id/district-council/south-lakeland,31/03/2021,Business Support Community Services,Cultural Environmental Regulatory & Planning Services,http://opendatacommunities.org/def/concept/finance/sercop/objective/104,LANCASHIRE DAF,,24/03/2021,153900,255,0,Parts,381400,Vehicle Mgt Maintenance
South Lakeland District Council,http://opendatacommunities.org/id/district-council/south-lakeland,31/03/2021,Support Services,Central Services,http://opendatacommunities.org/def/concept/finance/sercop/objective/102,CUMBRIA WASTE RECYCLING LTD,3162439,24/03/2021,153796,258.6,0,SLH Wheelie Bin & Skip Emptying,182012,Environment Waste Management Recycling
South Lakeland District Council,http://opendatacommunities.org/id/district-council/south-lakeland,31/03/2021,Business Support Community Services,Cultural Environmental Regulatory & Planning Services,http://opendatacommunities.org/def/concept/finance/sercop/objective/104,DENNIS EAGLE LTD,3794455,29/03/2021,154503,259.35,0,Parts,381300,Vehicle Mgt Industrial
South Lakeland District Council,http://opendatacommunities.org/id/district-council/south-lakeland,31/03/2021,Business Support Community Services,Cultural Environmental Regulatory & Planning Services,http://opendatacommunities.org/def/concept/finance/sercop/objective/104,DENNIS EAGLE LTD,3794455,07/04/2021,155281,259.35,0,Parts,381300,Vehicle Mgt Industrial
South Lakeland District Council,http://opendatacommunities.org/id/district-council/south-lakeland,31/03/2021,Support Services,Central Services,http://opendatacommunities.org/def/concept/finance/sercop/objective/102,BEETHAM PARISH COUNCIL,,22/03/2021,154193,260,0,Donation from Vice Chairman to fund,908000,Public Bodies Council support services
South Lakeland District Council,http://opendatacommunities.org/id/district-council/south-lakeland,31/03/2021,Case Management People,Housing Services,http://opendatacommunities.org/def/concept/finance/sercop/objective/108,Jane Harris,,29/03/2021,154444,264.73,0,Reimbursement of utiliy costs,250000,Housing
South Lakeland District Council,http://opendatacommunities.org/id/district-council/south-lakeland,31/03/2021,Case Management Account Mgmt,Central Services,http://opendatacommunities.org/def/concept/finance/sercop/objective/102,Institute of Cemetery,,24/03/2021,154426,270,0,Attendance at ICCM online training,120000,Cemetery & Crematorium
South Lakeland District Council,http://opendatacommunities.org/id/district-council/south-lakeland,31/03/2021,Case Management Account Mgmt,Cultural Environmental Regulatory & Planning Services,http://opendatacommunities.org/def/concept/finance/sercop/objective/104,CONTINENTAL LANDSCAPES LTD,2108452,29/03/2021,153922,275,0,Wooden shoring in Section L Parkside,391310,Construction Open Spaces Construction
South Lakeland District Council,http://opendatacommunities.org/id/district-council/south-lakeland,31/03/2021,Business Support Community Services,Cultural Environmental Regulatory & Planning Services,http://opendatacommunities.org/def/concept/finance/sercop/objective/104,S J Bargh,532272,29/03/2021,153943,275.6,0,MoTs,381400,Vehicle Mgt Maintenance
South Lakeland District Council,http://opendatacommunities.org/id/district-council/south-lakeland,31/03/2021,Business Support Community Services,Cultural Environmental Regulatory & Planning Services,http://opendatacommunities.org/def/concept/finance/sercop/objective/104,S J Bargh,532272,24/03/2021,154282,275.6,0,MoTs,381400,Vehicle Mgt Maintenance
South Lakeland District Council,http://opendatacommunities.org/id/district-council/south-lakeland,31/03/2021,Business Support Community Services,Cultural Environmental Regulatory & Planning Services,http://opendatacommunities.org/def/concept/finance/sercop/objective/104,S J Bargh,532272,29/03/2021,154547,275.6,0,MoT,381400,Vehicle Mgt Maintenance
South Lakeland District Council,http://opendatacommunities.org/id/district-council/south-lakeland,31/03/2021,Support Services,External Trading Accounts,,Ulverston Properties Limited,,08/03/2021,148662,281.67,0,Ulverston Business Centre,190000,Facilities & Management Services
South Lakeland District Council,http://opendatacommunities.org/id/district-council/south-lakeland,31/03/2021,Business Support Community Services,Cultural Environmental Regulatory & Planning Services,http://opendatacommunities.org/def/concept/finance/sercop/objective/104,Terberg Matec (UK) Ltd,,29/03/2021,154519,282.88,0,Parts,381500,Vehicle Mgt Parts
South Lakeland District Council,http://opendatacommunities.org/id/district-council/south-lakeland,31/03/2021,Business Support Community Services,Cultural Environmental Regulatory & Planning Services,http://opendatacommunities.org/def/concept/finance/sercop/objective/104,Dundee Tyres Ltd T/A Tyrebin,6949335,29/03/2021,154553,286.5,0,Disposal,182012,Environment Waste Management Recycling
South Lakeland District Council,http://opendatacommunities.org/id/district-council/south-lakeland,31/03/2021,Support Services,Cultural Environmental Regulatory & Planning Services,http://opendatacommunities.org/def/concept/finance/sercop/objective/104,Flock,,08/03/2021,149212,288.91,0,Facebook Promotional Charges for,151000,Consultancy Business
South Lakeland District Council,http://opendatacommunities.org/id/district-council/south-lakeland,31/03/2021,ICT Group,Central Services,http://opendatacommunities.org/def/concept/finance/sercop/objective/102,OPTECH FIBRES LTD,5442069,29/03/2021,154514,290,0,Charge for installation of Fibre link,271200,ICT Hardware
South Lakeland District Council,http://opendatacommunities.org/id/district-council/south-lakeland,31/03/2021,Customer Services,Cultural Environmental Regulatory & Planning Services,http://opendatacommunities.org/def/concept/finance/sercop/objective/104,MILNTHORPE KENNELS & CATTERY,8932302,15/03/2021,153301,292.44,0,Stray dog contract 2020/21 vets fees,181500,Environment Animal Services
South Lakeland District Council,http://opendatacommunities.org/id/district-council/south-lakeland,31/03/2021,Support Services,Cultural Environmental Regulatory & Planning Services,http://opendatacommunities.org/def/concept/finance/sercop/objective/104,DESIGNWORKS,,03/03/2021,149173,294,0,Annual Hosting fee for Kendal Futures,191100,Facilities Design & Photography
South Lakeland District Council,http://opendatacommunities.org/id/district-council/south-lakeland,31/03/2021,ICT Group,Central Services,http://opendatacommunities.org/def/concept/finance/sercop/objective/102,Insight Direct (Uk) Ltd,2579852,08/03/2021,148646,296.84,0,Logitech - K270 Keyboard / mouse -,271200,ICT Hardware
South Lakeland District Council,http://opendatacommunities.org/id/district-council/south-lakeland,31/03/2021,Support Services,Central Services,http://opendatacommunities.org/def/concept/finance/sercop/objective/102,GRANTS- MISCELLANEOUS,,24/03/2021,153929,300,0,Locality donation to provide assistance,201700,Financial Services Grants
South Lakeland District Council,http://opendatacommunities.org/id/district-council/south-lakeland,31/03/2021,Case Management Account Mgmt,Cultural Environmental Regulatory & Planning Services,http://opendatacommunities.org/def/concept/finance/sercop/objective/104,CONTINENTAL LANDSCAPES LTD,2108452,03/03/2021,148694,327.94,0,Extra works for grounds maintenance,391310,Construction Open Spaces Construction
South Lakeland District Council,http://opendatacommunities.org/id/district-council/south-lakeland,31/03/2021,Business Support Community Services,Cultural Environmental Regulatory & Planning Services,http://opendatacommunities.org/def/concept/finance/sercop/objective/104,HAKO MACHINES LIMITED,1414225,03/03/2021,149127,328.02,0,Repairs,131000,Cleaning & Janitorial Cleaning Materials
South Lakeland District Council,http://opendatacommunities.org/id/district-council/south-lakeland,31/03/2021,Case Management People,Housing Services,http://opendatacommunities.org/def/concept/finance/sercop/objective/108,HOME GROUP RENT A/C,,03/03/2021,149148,337.71,0,Rent payment,250000,Housing
South Lakeland District Council,http://opendatacommunities.org/id/district-council/south-lakeland,31/03/2021,Business Support Community Services,Cultural Environmental Regulatory & Planning Services,http://opendatacommunities.org/def/concept/finance/sercop/objective/104,AINSWORTH'S GARAGE,,24/03/2021,153906,340,0,Repairs,381400,Vehicle Mgt Maintenance
South Lakeland District Council,http://opendatacommunities.org/id/district-council/south-lakeland,31/03/2021,Business Support Community Services,Cultural Environmental Regulatory & Planning Services,http://opendatacommunities.org/def/concept/finance/sercop/objective/104,ARCO LIMITED,133804,24/03/2021,154411,343.52,0,PPE,141100,Clothing Protective
South Lakeland District Council,http://opendatacommunities.org/id/district-council/south-lakeland,31/03/2021,Case Management Regulatory,Central Services,http://opendatacommunities.org/def/concept/finance/sercop/objective/102,The Oyster Partnership,5020374,08/03/2021,148708,350,0,Agency Officer,261300,HR Recruitment & Assessment
South Lakeland District Council,http://opendatacommunities.org/id/district-council/south-lakeland,31/03/2021,Support Services,Central Services,http://opendatacommunities.org/def/concept/finance/sercop/objective/102,HEVERSHAM PARISH COUNCIL,,15/03/2021,153249,350,0,Locality donation to fund Heversham,908000,Public Bodies Council support services
South Lakeland District Council,http://opendatacommunities.org/id/district-council/south-lakeland,31/03/2021,Support Services,Central Services,http://opendatacommunities.org/def/concept/finance/sercop/objective/102,STAINTON PARISH COUNCIL,,22/03/2021,153773,350,0,Locality donation to fund,908000,Public Bodies Council support services
South Lakeland District Council,http://opendatacommunities.org/id/district-council/south-lakeland,31/03/2021,Support Services,Central Services,http://opendatacommunities.org/def/concept/finance/sercop/objective/102,NEWSQUEST MEDIA GROUP LTD,3102566,08/03/2021,149168,359.04,0,Newspaper Advertisement for Legal,191000,Facilities Advertising
South Lakeland District Council,http://opendatacommunities.org/id/district-council/south-lakeland,31/03/2021,Support Services,Central Services,http://opendatacommunities.org/def/concept/finance/sercop/objective/102,NEWSQUEST MEDIA GROUP LTD,3102566,10/03/2021,153245,359.04,0,Newspaper Advertisement for Legal,191000,Facilities Advertising
South Lakeland District Council,http://opendatacommunities.org/id/district-council/south-lakeland,31/03/2021,Case Management People,Housing Services,http://opendatacommunities.org/def/concept/finance/sercop/objective/108,KENDAL HOSTEL,,15/03/2021,153293,360,0,Accommodation 12 nights Jul 2020,261000,HR Accommodation
South Lakeland District Council,http://opendatacommunities.org/id/district-council/south-lakeland,31/03/2021,Case Management Account Mgmt,Cultural Environmental Regulatory & Planning Services,http://opendatacommunities.org/def/concept/finance/sercop/objective/104,Greaves Tree Services,,22/03/2021,154256,360,0,Clearance of storm damaged tree at,241600,Horticultural Trees & Shrubs
South Lakeland District Council,http://opendatacommunities.org/id/district-council/south-lakeland,31/03/2021,Lake Wardens,Cultural Environmental Regulatory & Planning Services,http://opendatacommunities.org/def/concept/finance/sercop/objective/104,E.P.BARRUS LTD,148476,17/03/2021,153938,363.64,0,1 x Head Gasket,907999,Marine Not Elsewhere Classified
South Lakeland District Council,http://opendatacommunities.org/id/district-council/south-lakeland,31/03/2021,Case Management Account Mgmt,Central Services,http://opendatacommunities.org/def/concept/finance/sercop/objective/102,ADECCO UK LIMITED,593232,29/03/2021,154564,367.43,0,Agency staff to support COVID-19,261400,HR Temporary & Agency Staff
South Lakeland District Council,http://opendatacommunities.org/id/district-council/south-lakeland,31/03/2021,Case Management Regulatory,Central Services,http://opendatacommunities.org/def/concept/finance/sercop/objective/102,The Oyster Partnership,5020374,29/03/2021,153227,367.5,0,Agency Officer,261300,HR Recruitment & Assessment
South Lakeland District Council,http://opendatacommunities.org/id/district-council/south-lakeland,31/03/2021,Support Services,Central Services,http://opendatacommunities.org/def/concept/finance/sercop/objective/102,JAMES BUTTON & CO,,29/03/2021,153214,370,0,Annual Subscription 1 April 2021 to 31,281300,Legal Services Legal Opinion
South Lakeland District Council,http://opendatacommunities.org/id/district-council/south-lakeland,31/03/2021,Support Services,Central Services,http://opendatacommunities.org/def/concept/finance/sercop/objective/102,JAMES BUTTON & CO,,29/03/2021,153214,370,0,Annual Subscription 1 April 2021 to 31,281300,Legal Services Legal Opinion
South Lakeland District Council,http://opendatacommunities.org/id/district-council/south-lakeland,31/03/2021,Westmorland Centre Parking Office,Highways & Transport Services,http://opendatacommunities.org/def/concept/finance/sercop/objective/107,CAPITA BUSINESS SERVICES LTD (NCR),,01/03/2021,153211,374.01,0,Credit card commision April 2020 -,261500,HR Training & Conferences
South Lakeland District Council,http://opendatacommunities.org/id/district-council/south-lakeland,31/03/2021,Case Management Account Mgmt,Central Services,http://opendatacommunities.org/def/concept/finance/sercop/objective/102,ROSEFOX PAPER LIMITED,1655083,29/03/2021,154455,379.06,0,A4 Trophee Yellow 80gsm,341000,Stationery Paper
South Lakeland District Council,http://opendatacommunities.org/id/district-council/south-lakeland,31/03/2021,Case Management Regulatory,Central Services,http://opendatacommunities.org/def/concept/finance/sercop/objective/102,The Oyster Partnership,5020374,29/03/2021,153231,380,0,Agency Officer to cover assessment of,261300,HR Recruitment & Assessment
South Lakeland District Council,http://opendatacommunities.org/id/district-council/south-lakeland,31/03/2021,Case Management Account Mgmt,Highways & Transport Services,http://opendatacommunities.org/def/concept/finance/sercop/objective/107,METRIC GROUP LIMITED,2560839,15/03/2021,149200,381.75,0,Car park machine contract maintenance,359999,Street & Traffic Not Elsewhere Classifie
South Lakeland District Council,http://opendatacommunities.org/id/district-council/south-lakeland,31/03/2021,Case Management Account Mgmt,Highways & Transport Services,http://opendatacommunities.org/def/concept/finance/sercop/objective/107,METRIC GROUP LIMITED,2560839,15/03/2021,149200,381.75,0,Car park machine contract maintenance,359999,Street & Traffic Not Elsewhere Classifie
South Lakeland District Council,http://opendatacommunities.org/id/district-council/south-lakeland,31/03/2021,Case Management Account Mgmt,Highways & Transport Services,http://opendatacommunities.org/def/concept/finance/sercop/objective/107,METRIC GROUP LIMITED,2560839,15/03/2021,149200,381.75,0,Car park machine contract maintenance,359999,Street & Traffic Not Elsewhere Classifie
South Lakeland District Council,http://opendatacommunities.org/id/district-council/south-lakeland,31/03/2021,Business Support Community Services,Cultural Environmental Regulatory & Planning Services,http://opendatacommunities.org/def/concept/finance/sercop/objective/104,ARCO LIMITED,133804,29/03/2021,154418,389.86,0,Cleaning materials,141100,Clothing Protective
South Lakeland District Council,http://opendatacommunities.org/id/district-council/south-lakeland,31/03/2021,Case Management Account Mgmt,Central Services,http://opendatacommunities.org/def/concept/finance/sercop/objective/102,PITNEY BOWES LTD,182037,15/03/2021,149142,394.5,0,2020-21 Stock Envelopes,301200,Mail Services� Postage
South Lakeland District Council,http://opendatacommunities.org/id/district-council/south-lakeland,31/03/2021,Support Services,SLDC as Agent,,AHA! DISTRIBUTION LTD,,03/03/2021,149187,395,0,Self Catering Pocket Guide for Kendal,191000,Facilities Advertising
South Lakeland District Council,http://opendatacommunities.org/id/district-council/south-lakeland,31/03/2021,Business Support Community Services,Cultural Environmental Regulatory & Planning Services,http://opendatacommunities.org/def/concept/finance/sercop/objective/104,ARCO LIMITED,133804,22/03/2021,153891,397.39,0,PPE,141100,Clothing Protective
South Lakeland District Council,http://opendatacommunities.org/id/district-council/south-lakeland,31/03/2021,Business Support Community Services,Cultural Environmental Regulatory & Planning Services,http://opendatacommunities.org/def/concept/finance/sercop/objective/104,ELIS UK LTD,228604,07/04/2021,155307,398.27,0,PPE,161000,Domestic Goods Commercial
South Lakeland District Council,http://opendatacommunities.org/id/district-council/south-lakeland,31/03/2021,Support Services,Central Services,http://opendatacommunities.org/def/concept/finance/sercop/objective/102,GRANTS- MISCELLANEOUS,,03/03/2021,149194,400,0,Locality donation to purchase practical,201700,Financial Services Grants
South Lakeland District Council,http://opendatacommunities.org/id/district-council/south-lakeland,31/03/2021,Case Management People,Housing Services,http://opendatacommunities.org/def/concept/finance/sercop/objective/108,D Clark Properties,,15/03/2021,153309,400,0,Accommodation Ramsden Street,250000,Housing
South Lakeland District Council,http://opendatacommunities.org/id/district-council/south-lakeland,31/03/2021,Case Management People,Housing Services,http://opendatacommunities.org/def/concept/finance/sercop/objective/108,D Clark Properties,,22/03/2021,154246,400,0,Accommodation The Lodge,250000,Housing
South Lakeland District Council,http://opendatacommunities.org/id/district-council/south-lakeland,31/03/2021,Case Management People,Housing Services,http://opendatacommunities.org/def/concept/finance/sercop/objective/108,D Clark Properties,,29/03/2021,154566,400,0,"Accommodation The Lodge, Barrow",250000,Housing
South Lakeland District Council,http://opendatacommunities.org/id/district-council/south-lakeland,31/03/2021,Support Services,Cultural Environmental Regulatory & Planning Services,http://opendatacommunities.org/def/concept/finance/sercop/objective/104,WiFi Spark Ltd,,17/03/2021,153855,402.18,0,Kendal Wifi Maintenance,271800,ICT Telecommunications Mobile
South Lakeland District Council,http://opendatacommunities.org/id/district-council/south-lakeland,31/03/2021,Business Support Community Services,Cultural Environmental Regulatory & Planning Services,http://opendatacommunities.org/def/concept/finance/sercop/objective/104,BRIAN ARMISTEAD LTD T/A SINKFALL RECYCLI,4133280,29/03/2021,154548,403.77,0,Tipping charges - green waste,391110,Construction Buildings Construction
South Lakeland District Council,http://opendatacommunities.org/id/district-council/south-lakeland,31/03/2021,Case Management Account Mgmt,Cultural Environmental Regulatory & Planning Services,http://opendatacommunities.org/def/concept/finance/sercop/objective/104,Bergen Arbortech,,15/03/2021,153732,404.25,0,"Garth Heads, Kendal - Fell Ash trees",241210,Horticultural Tree Trimming
South Lakeland District Council,http://opendatacommunities.org/id/district-council/south-lakeland,31/03/2021,ICT Group,Central Services,http://opendatacommunities.org/def/concept/finance/sercop/objective/102,InfoSecurity People Limited,,29/03/2021,153915,406,0,Nessus Renewal Uplift 2021 to 2022,271440,ICT Software
South Lakeland District Council,http://opendatacommunities.org/id/district-council/south-lakeland,31/03/2021,ICT Group,Central Services,http://opendatacommunities.org/def/concept/finance/sercop/objective/102,THE DOCUMENT MANAGEMENT GROUP LTD,5210023,29/03/2021,154272,406.25,0,Canon DR5010C scanner maintenance.,191200,Facilities Document Archiving & Storage
South Lakeland District Council,http://opendatacommunities.org/id/district-council/south-lakeland,31/03/2021,Case Management,Housing Services,http://opendatacommunities.org/def/concept/finance/sercop/objective/108,Landlord,,03/03/2021,149171,415,0,"Monthly rent for The Courtyard,",250010,Housing Letting Agents
South Lakeland District Council,http://opendatacommunities.org/id/district-council/south-lakeland,31/03/2021,Case Management,Housing Services,http://opendatacommunities.org/def/concept/finance/sercop/objective/108,Landlord,,17/03/2021,153865,415,0,"Monthly rent for The Courtyard,",250010,Housing Letting Agents
South Lakeland District Council,http://opendatacommunities.org/id/district-council/south-lakeland,31/03/2021,Business Support Community Services,Cultural Environmental Regulatory & Planning Services,http://opendatacommunities.org/def/concept/finance/sercop/objective/104,REEN Technologies Limited,9347391,29/03/2021,153237,416,0,Monthly subscriptions 2019/20,261517,ICT-Consultancy
South Lakeland District Council,http://opendatacommunities.org/id/district-council/south-lakeland,31/03/2021,Business Support Community Services,Cultural Environmental Regulatory & Planning Services,http://opendatacommunities.org/def/concept/finance/sercop/objective/104,REEN Technologies Limited,9347391,29/03/2021,154568,416,0,Monthly subscriptions 2019/20,261517,ICT-Consultancy
South Lakeland District Council,http://opendatacommunities.org/id/district-council/south-lakeland,31/03/2021,Support Services,SLDC as Agent,,BOROUGH OF BARROW IN FURNESS,,29/03/2021,154614,416.34,0,Remaining CSP Funding held at SLDC,908999,Public Bodies Not Elsewhere Classified
South Lakeland District Council,http://opendatacommunities.org/id/district-council/south-lakeland,31/03/2021,Case Management,Housing Services,http://opendatacommunities.org/def/concept/finance/sercop/objective/108,SOUTH LAKES HOUSING RENT A/C,,10/03/2021,153717,416.56,0,"Rent in  advance for Helm Close,",191700,Facilities Property Management
South Lakeland District Council,http://opendatacommunities.org/id/district-council/south-lakeland,31/03/2021,Case Management,Housing Services,http://opendatacommunities.org/def/concept/finance/sercop/objective/108,SOUTH LAKES HOUSING RENT A/C,,29/03/2021,154524,416.56,0,"Rent in advance for 22 ~Helme Close,",191700,Facilities Property Management
South Lakeland District Council,http://opendatacommunities.org/id/district-council/south-lakeland,31/03/2021,Business Support Community Services,Cultural Environmental Regulatory & Planning Services,http://opendatacommunities.org/def/concept/finance/sercop/objective/104,DENNIS EAGLE LTD,3794455,22/03/2021,153820,432.46,0,Parts,381300,Vehicle Mgt Industrial
South Lakeland District Council,http://opendatacommunities.org/id/district-council/south-lakeland,31/03/2021,ICT Group,Central Services,http://opendatacommunities.org/def/concept/finance/sercop/objective/102,PROBRAND LTD,2653446,29/03/2021,153233,433,0,Logitech - K270 Keyboard - Wireless -,271600,ICT Software Customised & Bespoke
South Lakeland District Council,http://opendatacommunities.org/id/district-council/south-lakeland,31/03/2021,Case Management People,Housing Services,http://opendatacommunities.org/def/concept/finance/sercop/objective/108,Ashberry Recruitment,7202591,15/03/2021,153307,433.41,0,Agency Support Staff at TVF,261300,HR Recruitment & Assessment
South Lakeland District Council,http://opendatacommunities.org/id/district-council/south-lakeland,31/03/2021,Case Management,Central Services,http://opendatacommunities.org/def/concept/finance/sercop/objective/102,MORGAN HUNT UK LIMITED,4349535,15/03/2021,153306,437.5,0,(Revenues Contractor),269999,HR Not Elsewhere Classified
South Lakeland District Council,http://opendatacommunities.org/id/district-council/south-lakeland,31/03/2021,Case Management Account Mgmt,Central Services,http://opendatacommunities.org/def/concept/finance/sercop/objective/102,HBINFO LTD,5779046,29/03/2021,154489,440,0,Exempt accommodation training,201400,Financial Services C Tax & Bus Rates
South Lakeland District Council,http://opendatacommunities.org/id/district-council/south-lakeland,31/03/2021,Case Management People,Housing Services,http://opendatacommunities.org/def/concept/finance/sercop/objective/108,Ashberry Recruitment,7202591,29/03/2021,154515,448.34,0,Agency staff at Town View Fields,261300,HR Recruitment & Assessment
South Lakeland District Council,http://opendatacommunities.org/id/district-council/south-lakeland,31/03/2021,Support Services,Central Services,http://opendatacommunities.org/def/concept/finance/sercop/objective/102,SEDGWICK PARISH COUNCIL,,15/03/2021,153273,450,0,Locality donation to fund tree removal.,908000,Public Bodies Council support services
South Lakeland District Council,http://opendatacommunities.org/id/district-council/south-lakeland,31/03/2021,Case Management Account Mgmt,Central Services,http://opendatacommunities.org/def/concept/finance/sercop/objective/102,CAPITA BUSINESS SERVICES LTD,2299747,07/04/2021,155294,450,0,Subsidy Webinar,261500,HR Training & Conferences
South Lakeland District Council,http://opendatacommunities.org/id/district-council/south-lakeland,31/03/2021,Business Support Community Services,Cultural Environmental Regulatory & Planning Services,http://opendatacommunities.org/def/concept/finance/sercop/objective/104,ARCO LIMITED,133804,29/03/2021,154393,453.6,0,PPE,141100,Clothing Protective
South Lakeland District Council,http://opendatacommunities.org/id/district-council/south-lakeland,31/03/2021,Support Services,Central Services,http://opendatacommunities.org/def/concept/finance/sercop/objective/102,CUMBRIA LGPS,,08/03/2021,153204,456.8,0,Flexible retirement 31.12.20,908999,Public Bodies Not Elsewhere Classified
South Lakeland District Council,http://opendatacommunities.org/id/district-council/south-lakeland,31/03/2021,Case Management Account Mgmt,Cultural Environmental Regulatory & Planning Services,http://opendatacommunities.org/def/concept/finance/sercop/objective/104,Weasdale Nurseries Ltd,,08/03/2021,149117,458.89,0,Supply of trees for Fletcher Park and,241600,Horticultural Trees & Shrubs
South Lakeland District Council,http://opendatacommunities.org/id/district-council/south-lakeland,31/03/2021,Business Support Community Services,Cultural Environmental Regulatory & Planning Services,http://opendatacommunities.org/def/concept/finance/sercop/objective/104,DENNIS EAGLE LTD,3794455,08/03/2021,149219,459.06,0,Parts,381300,Vehicle Mgt Industrial
South Lakeland District Council,http://opendatacommunities.org/id/district-council/south-lakeland,31/03/2021,ICT Group,Central Services,http://opendatacommunities.org/def/concept/finance/sercop/objective/102,DAISY COMMUNICATIONS LTD,4145329,15/03/2021,153262,459.99,0,"Daisy Line Rentel costs, covers 1/4/20",271700,ICT Telecommunications Fixed
South Lakeland District Council,http://opendatacommunities.org/id/district-council/south-lakeland,31/03/2021,Case Management Regulatory,Cultural Environmental Regulatory & Planning Services,http://opendatacommunities.org/def/concept/finance/sercop/objective/104,A G & P Jackson,,29/03/2021,154307,462,0,Review agricultural appraisal for Land,150000,Consultancy
South Lakeland District Council,http://opendatacommunities.org/id/district-council/south-lakeland,31/03/2021,Case Management People,Housing Services,http://opendatacommunities.org/def/concept/finance/sercop/objective/108,Ashberry Recruitment,7202591,03/03/2021,148706,463.05,0,Agency Support Staff at TVF,261300,HR Recruitment & Assessment
South Lakeland District Council,http://opendatacommunities.org/id/district-council/south-lakeland,31/03/2021,Business Support Community Services,Cultural Environmental Regulatory & Planning Services,http://opendatacommunities.org/def/concept/finance/sercop/objective/104,AAM SERVICES LTD,3176122,15/03/2021,153768,475,0,Removal & disposal of asbestos from,381500,Vehicle Mgt Parts
South Lakeland District Council,http://opendatacommunities.org/id/district-council/south-lakeland,31/03/2021,ICT Group,Central Services,http://opendatacommunities.org/def/concept/finance/sercop/objective/102,DAISY COMMUNICATIONS LTD,4145329,01/03/2021,148591,487.34,0,"Daisy Line Rentel costs, covers 1/4/20",271700,ICT Telecommunications Fixed
South Lakeland District Council,http://opendatacommunities.org/id/district-council/south-lakeland,31/03/2021,ICT Group,Central Services,http://opendatacommunities.org/def/concept/finance/sercop/objective/102,IT PROFESSIONAL SERVICES (ITPS),,10/03/2021,153288,492.89,0,Installation of PSTN Line at Hampsfell,279999,ICT Not Elsewhere Classified
South Lakeland District Council,http://opendatacommunities.org/id/district-council/south-lakeland,31/03/2021,Case Management People,Housing Services,http://opendatacommunities.org/def/concept/finance/sercop/objective/108,HOME GROUP RENT A/C,,24/03/2021,154476,494.6,0,Rent in advance,250000,Housing
South Lakeland District Council,http://opendatacommunities.org/id/district-council/south-lakeland,31/03/2021,Business Support Community Services,Cultural Environmental Regulatory & Planning Services,http://opendatacommunities.org/def/concept/finance/sercop/objective/104,HAKO MACHINES LIMITED,1414225,03/03/2021,149128,498.12,0,Repairs,131000,Cleaning & Janitorial Cleaning Materials
South Lakeland District Council,http://opendatacommunities.org/id/district-council/south-lakeland,31/03/2021,Business Support Community Services,Cultural Environmental Regulatory & Planning Services,http://opendatacommunities.org/def/concept/finance/sercop/objective/104,INNOVATIVE SAFETY SYSTEMS LTD,6875015,07/04/2021,155282,499,0,Parts,192200,Facilities Security
South Lakeland District Council,http://opendatacommunities.org/id/district-council/south-lakeland,31/03/2021,Support Services,Central Services,http://opendatacommunities.org/def/concept/finance/sercop/objective/102,GRANTS- MISCELLANEOUS,,03/03/2021,149145,500,0,Locality donation to fund purchase of,201700,Financial Services Grants
South Lakeland District Council,http://opendatacommunities.org/id/district-council/south-lakeland,31/03/2021,Support Services,Central Services,http://opendatacommunities.org/def/concept/finance/sercop/objective/102,GRANTS- MISCELLANEOUS,,08/03/2021,149213,500,0,Locality donation to fund new garden,201700,Financial Services Grants
South Lakeland District Council,http://opendatacommunities.org/id/district-council/south-lakeland,31/03/2021,Support Services,Central Services,http://opendatacommunities.org/def/concept/finance/sercop/objective/102,KENDAL TOWN COUNCIL,,15/03/2021,153269,500,0,Locality donation to fund Safety,908000,Public Bodies Council support services
South Lakeland District Council,http://opendatacommunities.org/id/district-council/south-lakeland,31/03/2021,Support Services,Central Services,http://opendatacommunities.org/def/concept/finance/sercop/objective/102,GRANTS- MISCELLANEOUS,,15/03/2021,153770,500,0,Locality donation to fund Bee Team,201700,Financial Services Grants
South Lakeland District Council,http://opendatacommunities.org/id/district-council/south-lakeland,31/03/2021,Support Services,Central Services,http://opendatacommunities.org/def/concept/finance/sercop/objective/102,GRANTS- MISCELLANEOUS,,17/03/2021,153856,500,0,Locality donation to fund window,201700,Financial Services Grants
South Lakeland District Council,http://opendatacommunities.org/id/district-council/south-lakeland,31/03/2021,Support Services,Central Services,http://opendatacommunities.org/def/concept/finance/sercop/objective/102,The Coniston Institute,,22/03/2021,154254,500,0,Locality donation to fund toilet,192110,Facilities Room Hire
South Lakeland District Council,http://opendatacommunities.org/id/district-council/south-lakeland,31/03/2021,Support Services,Central Services,http://opendatacommunities.org/def/concept/finance/sercop/objective/102,GRANTS- MISCELLANEOUS,,29/03/2021,154270,500,0,Locality donation to fund Ulverston,201700,Financial Services Grants
South Lakeland District Council,http://opendatacommunities.org/id/district-council/south-lakeland,31/03/2021,Support Services,Central Services,http://opendatacommunities.org/def/concept/finance/sercop/objective/102,GRANTS- MISCELLANEOUS,,24/03/2021,154303,500,0,Locality donation to fund defibrillator,201700,Financial Services Grants
South Lakeland District Council,http://opendatacommunities.org/id/district-council/south-lakeland,31/03/2021,Business Support Community Services,Cultural Environmental Regulatory & Planning Services,http://opendatacommunities.org/def/concept/finance/sercop/objective/104,DENNIS EAGLE LTD,3794455,08/03/2021,149218,500.28,0,Parts,381300,Vehicle Mgt Industrial
South Lakeland District Council,http://opendatacommunities.org/id/district-council/south-lakeland,31/03/2021,Case Management Regulatory,Central Services,http://opendatacommunities.org/def/concept/finance/sercop/objective/102,Enterprise Flex-E Rent,,15/03/2021,153255,504.39,0,Refrigerated Van Hire for Private Water,381210,Vehicle Mangement- Hire
South Lakeland District Council,http://opendatacommunities.org/id/district-council/south-lakeland,31/03/2021,Case Management,Non-Service Payments,,CYCLESCHEME LTD,5363678,22/03/2021,154385,508.33,0,Shaun Dacre cycle W556396,389999,Vehicle Mgt Not Else Class
South Lakeland District Council,http://opendatacommunities.org/id/district-council/south-lakeland,31/03/2021,Business Support Community Services,Cultural Environmental Regulatory & Planning Services,http://opendatacommunities.org/def/concept/finance/sercop/objective/104,LANCASHIRE DAF,,24/03/2021,153904,510,0,Parts,381400,Vehicle Mgt Maintenance
South Lakeland District Council,http://opendatacommunities.org/id/district-council/south-lakeland,31/03/2021,Westmorland Centre Parking Office,Culture and Related Serv,http://opendatacommunities.org/def/concept/finance/sercop/objective/104,CONTINENTAL LANDSCAPES LTD,2108452,29/03/2021,153917,514.12,0,Suplly plants for bog gardens as per,391310,Construction Open Spaces Construction
South Lakeland District Council,http://opendatacommunities.org/id/district-council/south-lakeland,31/03/2021,Business Support Community Services,Cultural Environmental Regulatory & Planning Services,http://opendatacommunities.org/def/concept/finance/sercop/objective/104,INNOVATIVE SAFETY SYSTEMS LTD,6875015,22/03/2021,153897,516,0,Parts,192200,Facilities Security
South Lakeland District Council,http://opendatacommunities.org/id/district-council/south-lakeland,31/03/2021,Westmorland Centre Parking Office,Central Services,http://opendatacommunities.org/def/concept/finance/sercop/objective/102,OPTECH FIBRES LTD,5442069,08/03/2021,148712,530,0,installation of fibre optic cables as,271200,ICT Hardware
South Lakeland District Council,http://opendatacommunities.org/id/district-council/south-lakeland,31/03/2021,Case Management,Housing Services,http://opendatacommunities.org/def/concept/finance/sercop/objective/108,Landlord,,03/03/2021,149170,536.98,0,"Monthly rent for  New Road,",250000,Housing
South Lakeland District Council,http://opendatacommunities.org/id/district-council/south-lakeland,31/03/2021,Case Management,Housing Services,http://opendatacommunities.org/def/concept/finance/sercop/objective/108,Landlord,,17/03/2021,153864,536.98,0,"Monthly rent for New Road,",250000,Housing
South Lakeland District Council,http://opendatacommunities.org/id/district-council/south-lakeland,31/03/2021,Business Support Community Services,Cultural Environmental Regulatory & Planning Services,http://opendatacommunities.org/def/concept/finance/sercop/objective/104,CUMBRIA COUNTY COUNCIL,,24/03/2021,154374,545.69,0,Repair wall,908000,Public Bodies Council support services
South Lakeland District Council,http://opendatacommunities.org/id/district-council/south-lakeland,31/03/2021,Support Services,Central Services,http://opendatacommunities.org/def/concept/finance/sercop/objective/102,St John's Chambers,,15/03/2021,153256,550,0,review of decision letter to the revoke,281200,Legal Services General Support
South Lakeland District Council,http://opendatacommunities.org/id/district-council/south-lakeland,31/03/2021,Support Services,Central Services,http://opendatacommunities.org/def/concept/finance/sercop/objective/102,GRANTS- MISCELLANEOUS,,15/03/2021,153736,550,0,Locality donation to fund Rydal Road,201700,Financial Services Grants
South Lakeland District Council,http://opendatacommunities.org/id/district-council/south-lakeland,31/03/2021,Case Management Account Mgmt,Cultural Environmental Regulatory & Planning Services,http://opendatacommunities.org/def/concept/finance/sercop/objective/104,J CHAPLOW & SONS LTD,335899,29/03/2021,154619,550,0,Thermoplastic marking for kickabout,231100,Highways Bituminous Mat & Surf Dress
South Lakeland District Council,http://opendatacommunities.org/id/district-council/south-lakeland,31/03/2021,Case Management Regulatory,Central Services,http://opendatacommunities.org/def/concept/finance/sercop/objective/102,The Oyster Partnership,5020374,22/03/2021,153810,560,0,Agency Officer,261300,HR Recruitment & Assessment
South Lakeland District Council,http://opendatacommunities.org/id/district-council/south-lakeland,31/03/2021,Case Management Regulatory,Central Services,http://opendatacommunities.org/def/concept/finance/sercop/objective/102,The Oyster Partnership,5020374,29/03/2021,154433,560,0,Agency Officer,261300,HR Recruitment & Assessment
South Lakeland District Council,http://opendatacommunities.org/id/district-council/south-lakeland,31/03/2021,Case Management,Housing Services,http://opendatacommunities.org/def/concept/finance/sercop/objective/108,GROWING CONCERNS LTD,,24/03/2021,154405,594,0,Growing Concerns Payment for invoices,391200,Construction Engineering
South Lakeland District Council,http://opendatacommunities.org/id/district-council/south-lakeland,31/03/2021,Case Management Regulatory,SLDC as Agent,,CUMBRIA COUNTY COUNCIL,,07/04/2021,155262,594,0,DBS checks for taxi drivers 20/21,908000,Public Bodies Council support services
South Lakeland District Council,http://opendatacommunities.org/id/district-council/south-lakeland,31/03/2021,Support Services,Central Services,http://opendatacommunities.org/def/concept/finance/sercop/objective/102,LRM Security Ltd,,15/03/2021,153265,600,0,Key Holding & Call Out Alarm Response -,192213,Facilities Security Manned Guarding
South Lakeland District Council,http://opendatacommunities.org/id/district-council/south-lakeland,31/03/2021,Support Services,Central Services,http://opendatacommunities.org/def/concept/finance/sercop/objective/102,MILNTHORPE PARISH COUNCIL,,17/03/2021,153800,600,0,Locality donation to fund new lighting,908000,Public Bodies Council support services
South Lakeland District Council,http://opendatacommunities.org/id/district-council/south-lakeland,31/03/2021,Support Services,Other Items,,PS BUSINESS MATTERS,8147185,29/03/2021,154511,600,0,Project Assistance for Reopening High,151900,Consultancy Management
South Lakeland District Council,http://opendatacommunities.org/id/district-council/south-lakeland,31/03/2021,Business Support Community Services,Cultural Environmental Regulatory & Planning Services,http://opendatacommunities.org/def/concept/finance/sercop/objective/104,FAUN ZOELLER (UK) LTD,751804,24/03/2021,153920,602,0,Repairs,381400,Vehicle Mgt Maintenance
South Lakeland District Council,http://opendatacommunities.org/id/district-council/south-lakeland,31/03/2021,Case Management Account Mgmt,Central Services,http://opendatacommunities.org/def/concept/finance/sercop/objective/102,ADECCO UK LIMITED,593232,08/03/2021,149209,604.21,0,Agency staff to support COVID-19,261400,HR Temporary & Agency Staff
South Lakeland District Council,http://opendatacommunities.org/id/district-council/south-lakeland,31/03/2021,Case Management,Other Items,,ADECCO UK LIMITED,593232,07/04/2021,154554,604.21,0,Agency Staff to support COVID-19,261400,HR Temporary & Agency Staff
South Lakeland District Council,http://opendatacommunities.org/id/district-council/south-lakeland,31/03/2021,Case Management,Other Items,,ADECCO UK LIMITED,593232,07/04/2021,154558,604.21,0,Agency Staff to support COVID-19,261400,HR Temporary & Agency Staff
South Lakeland District Council,http://opendatacommunities.org/id/district-council/south-lakeland,31/03/2021,Case Management,Other Items,,ADECCO UK LIMITED,593232,07/04/2021,154562,604.21,0,Agency Staff to support COVID-19,261400,HR Temporary & Agency Staff
South Lakeland District Council,http://opendatacommunities.org/id/district-council/south-lakeland,31/03/2021,Case Management Regulatory,Central Services,http://opendatacommunities.org/def/concept/finance/sercop/objective/102,The Oyster Partnership,5020374,01/03/2021,148549,608,0,Agency Officer to cover assessment of,261300,HR Recruitment & Assessment
South Lakeland District Council,http://opendatacommunities.org/id/district-council/south-lakeland,31/03/2021,Case Management Regulatory,Central Services,http://opendatacommunities.org/def/concept/finance/sercop/objective/102,The Oyster Partnership,5020374,08/03/2021,148711,608,0,Agency Officer to cover assessment of,261300,HR Recruitment & Assessment
South Lakeland District Council,http://opendatacommunities.org/id/district-council/south-lakeland,31/03/2021,Case Management Regulatory,Central Services,http://opendatacommunities.org/def/concept/finance/sercop/objective/102,The Oyster Partnership,5020374,22/03/2021,153812,608,0,Agency Officer to cover assessment of,261300,HR Recruitment & Assessment
South Lakeland District Council,http://opendatacommunities.org/id/district-council/south-lakeland,31/03/2021,Case Management Regulatory,Central Services,http://opendatacommunities.org/def/concept/finance/sercop/objective/102,The Oyster Partnership,5020374,29/03/2021,154436,608,0,Agency Officer to cover assessment of,261300,HR Recruitment & Assessment
South Lakeland District Council,http://opendatacommunities.org/id/district-council/south-lakeland,31/03/2021,Case Management Account Mgmt,Central Services,http://opendatacommunities.org/def/concept/finance/sercop/objective/102,ADECCO UK LIMITED,593232,01/03/2021,144813,612.38,0,Agency staff to support COVID-19,261400,HR Temporary & Agency Staff
South Lakeland District Council,http://opendatacommunities.org/id/district-council/south-lakeland,31/03/2021,Case Management Account Mgmt,Central Services,http://opendatacommunities.org/def/concept/finance/sercop/objective/102,ADECCO UK LIMITED,593232,08/03/2021,149206,612.38,0,Agency staff to support COVID-19,261400,HR Temporary & Agency Staff
South Lakeland District Council,http://opendatacommunities.org/id/district-council/south-lakeland,31/03/2021,Case Management,Other Items,,ADECCO UK LIMITED,593232,07/04/2021,154560,612.38,0,Agency Staff to support COVID-19,261400,HR Temporary & Agency Staff
South Lakeland District Council,http://opendatacommunities.org/id/district-council/south-lakeland,31/03/2021,Business Support Community Services,Cultural Environmental Regulatory & Planning Services,http://opendatacommunities.org/def/concept/finance/sercop/objective/104,ARCO LIMITED,133804,29/03/2021,154390,615.2,0,PPE,141100,Clothing Protective
South Lakeland District Council,http://opendatacommunities.org/id/district-council/south-lakeland,31/03/2021,Case Management People,Housing Services,http://opendatacommunities.org/def/concept/finance/sercop/objective/108,JJM Properties,,08/03/2021,149222,634,0,Rent arrears payment,250010,Housing Letting Agents
South Lakeland District Council,http://opendatacommunities.org/id/district-council/south-lakeland,31/03/2021,Business Support Community Services,Cultural Environmental Regulatory & Planning Services,http://opendatacommunities.org/def/concept/finance/sercop/objective/104,LANCASHIRE DAF,,29/03/2021,154499,636.59,0,Parts,381400,Vehicle Mgt Maintenance
South Lakeland District Council,http://opendatacommunities.org/id/district-council/south-lakeland,31/03/2021,Development Implementation,Central Services,http://opendatacommunities.org/def/concept/finance/sercop/objective/102,J S Cleaning Services,,15/03/2021,149197,640,0,Cleaner for SLDC - April 2019 Onwards,131010,Cleaning & Janitorial Cleaning Materials
South Lakeland District Council,http://opendatacommunities.org/id/district-council/south-lakeland,31/03/2021,Case Management Account Mgmt,Cultural Environmental Regulatory & Planning Services,http://opendatacommunities.org/def/concept/finance/sercop/objective/104,Greaves Tree Services,,15/03/2021,149185,650,0,Cark playground car park,241600,Horticultural Trees & Shrubs
South Lakeland District Council,http://opendatacommunities.org/id/district-council/south-lakeland,31/03/2021,Assets and Commercial Services,Central Services,http://opendatacommunities.org/def/concept/finance/sercop/objective/102,Rentokil Initial,301044,29/03/2021,154625,650,0,Town view hostel deep clean,130000,Cleanine & Janitorial
South Lakeland District Council,http://opendatacommunities.org/id/district-council/south-lakeland,31/03/2021,ICT Group,Central Services,http://opendatacommunities.org/def/concept/finance/sercop/objective/102,DAISY COMMUNICATIONS LTD,4145329,01/03/2021,148593,653,0,"Daisy Line Rentel costs, covers 1/4/20",271700,ICT Telecommunications Fixed
South Lakeland District Council,http://opendatacommunities.org/id/district-council/south-lakeland,31/03/2021,Support Services,Central Services,http://opendatacommunities.org/def/concept/finance/sercop/objective/102,ROYAL MAIL GROUP PLC,,29/03/2021,154488,655.3,0,Response plus weeks ending 23 Jan  to,301200,Mail Services� Postage
South Lakeland District Council,http://opendatacommunities.org/id/district-council/south-lakeland,31/03/2021,Case Management Account Mgmt,Cultural Environmental Regulatory & Planning Services,http://opendatacommunities.org/def/concept/finance/sercop/objective/104,SOUTH LAKES TREE SURGEONS & LANDSCAPES,5342745,29/03/2021,153260,680,0,September 2020 tree works package,241210,Horticultural Tree Trimming
South Lakeland District Council,http://opendatacommunities.org/id/district-council/south-lakeland,31/03/2021,Case Management Account Mgmt,Cultural Environmental Regulatory & Planning Services,http://opendatacommunities.org/def/concept/finance/sercop/objective/104,R J MOORHOUSE WELDING & FABRICATIONS,,22/03/2021,154308,683.62,0,"Post, lifebelt post, swing handles,",391200,Construction Engineering
South Lakeland District Council,http://opendatacommunities.org/id/district-council/south-lakeland,31/03/2021,Business Support Community Services,Central Services,http://opendatacommunities.org/def/concept/finance/sercop/objective/102,YORKSHIRE DALES NATIONAL PARK AUTHY,,29/03/2021,153781,689.35,0,LAND CHARGE SEARCH ENQUIRIES YDNPA,202100,Financial Services Subscriptions
South Lakeland District Council,http://opendatacommunities.org/id/district-council/south-lakeland,31/03/2021,Business Support Community Services,Cultural Environmental Regulatory & Planning Services,http://opendatacommunities.org/def/concept/finance/sercop/objective/104,CALIBRATION & CONSULTANCY SERV (UK) LTD,,29/03/2021,154496,691.5,0,Servicing,159999,Consultancy Not Elsewhere Classified
South Lakeland District Council,http://opendatacommunities.org/id/district-council/south-lakeland,31/03/2021,Case Management Regulatory,Cultural Environmental Regulatory & Planning Services,http://opendatacommunities.org/def/concept/finance/sercop/objective/104,LAMBERT SMITH HAMPTON GROUP,2521225,15/03/2021,153283,700,0,"Site meeting at Monton, 10 Cart Lane 23",191700,Facilities Property Management
South Lakeland District Council,http://opendatacommunities.org/id/district-council/south-lakeland,31/03/2021,Case Management Account Mgmt,Cultural Environmental Regulatory & Planning Services,http://opendatacommunities.org/def/concept/finance/sercop/objective/104,Green Small Business,,10/03/2021,153244,701,0,Environmental advice and environmental,151000,Consultancy Business
South Lakeland District Council,http://opendatacommunities.org/id/district-council/south-lakeland,31/03/2021,Case Management People,SLDC as Agent,,CIVICA UK LTD,1628868,29/03/2021,154579,710.49,0,Partnership fees 01/04/21 - 31/07/21,271600,ICT Software Customised & Bespoke
South Lakeland District Council,http://opendatacommunities.org/id/district-council/south-lakeland,31/03/2021,Case Management Account Mgmt,Cultural Environmental Regulatory & Planning Services,http://opendatacommunities.org/def/concept/finance/sercop/objective/104,SOUTH LAKES TREE SURGEONS & LANDSCAPES,5342745,15/03/2021,153251,720,0,November tree works package - Rothay,241210,Horticultural Tree Trimming
South Lakeland District Council,http://opendatacommunities.org/id/district-council/south-lakeland,31/03/2021,Case Management Account Mgmt,Non-Service Payments,,Ulverston BID Company Ltd,9761005,24/03/2021,154486,721.88,0,Monies collected,201700,Financial Services Grants
South Lakeland District Council,http://opendatacommunities.org/id/district-council/south-lakeland,31/03/2021,Business Support Community Services,Cultural Environmental Regulatory & Planning Services,http://opendatacommunities.org/def/concept/finance/sercop/objective/104,ARCO LIMITED,133804,24/03/2021,154408,734.92,0,PPE,141100,Clothing Protective
South Lakeland District Council,http://opendatacommunities.org/id/district-council/south-lakeland,31/03/2021,Business Support Community Services,Cultural Environmental Regulatory & Planning Services,http://opendatacommunities.org/def/concept/finance/sercop/objective/104,CV COMPONENTS,,24/03/2021,153916,738.2,0,Parts,381500,Vehicle Mgt Parts
South Lakeland District Council,http://opendatacommunities.org/id/district-council/south-lakeland,31/03/2021,Case Management Account Mgmt,Highways & Transport Services,http://opendatacommunities.org/def/concept/finance/sercop/objective/107,METRIC GROUP LIMITED,2560839,15/03/2021,153242,745.5,0,Website hosting costs 1 April 2021 to,359999,Street & Traffic Not Elsewhere Classifie
South Lakeland District Council,http://opendatacommunities.org/id/district-council/south-lakeland,31/03/2021,Business Support Community Services,Cultural Environmental Regulatory & Planning Services,http://opendatacommunities.org/def/concept/finance/sercop/objective/104,FAUN ZOELLER (UK) LTD,751804,15/03/2021,153735,746.05,0,parts,381400,Vehicle Mgt Maintenance
South Lakeland District Council,http://opendatacommunities.org/id/district-council/south-lakeland,31/03/2021,Case Management Account Mgmt,Central Services,http://opendatacommunities.org/def/concept/finance/sercop/objective/102,RH Environmental Limited,,29/03/2021,154265,750,0,CPN Training,202100,Financial Services Subscriptions
South Lakeland District Council,http://opendatacommunities.org/id/district-council/south-lakeland,31/03/2021,Case Management Regulatory,Cultural Environmental Regulatory & Planning Services,http://opendatacommunities.org/def/concept/finance/sercop/objective/104,Sefton Metropolitan Borough Council,,15/03/2021,153261,755,0,Contribution to Northern Coastal Sub,182030,Environment Water Assessment & Treatment
South Lakeland District Council,http://opendatacommunities.org/id/district-council/south-lakeland,31/03/2021,Case Management Account Mgmt,Central Services,http://opendatacommunities.org/def/concept/finance/sercop/objective/102,Institute of Cemetery,,22/03/2021,154253,760,0,sldc advertisment,120000,Cemetery & Crematorium
South Lakeland District Council,http://opendatacommunities.org/id/district-council/south-lakeland,31/03/2021,Case Management Account Mgmt,Central Services,http://opendatacommunities.org/def/concept/finance/sercop/objective/102,ALPHATEC P.F.E,5419826,24/03/2021,154466,765,0,Renewal of Service contract for,271400,ICT Office & Reprographics Equipment
South Lakeland District Council,http://opendatacommunities.org/id/district-council/south-lakeland,31/03/2021,Business Support Community Services,Cultural Environmental Regulatory & Planning Services,http://opendatacommunities.org/def/concept/finance/sercop/objective/104,HAKO MACHINES LIMITED,1414225,24/03/2021,153918,769.78,0,Repairs,131000,Cleaning & Janitorial Cleaning Materials
South Lakeland District Council,http://opendatacommunities.org/id/district-council/south-lakeland,31/03/2021,ICT Group,Central Services,http://opendatacommunities.org/def/concept/finance/sercop/objective/102,NEC Software Solutions UK Ltd,,29/03/2021,154438,774,0,Adlib Express DTF Annual Support covers,271600,ICT Software Customised & Bespoke
South Lakeland District Council,http://opendatacommunities.org/id/district-council/south-lakeland,31/03/2021,Case Management Account Mgmt,Culture and Related Serv,http://opendatacommunities.org/def/concept/finance/sercop/objective/104,R G PARKINS & PARTNERS LTD,4107150,24/03/2021,154425,787.5,0,professional services,152200,Consultancy Technical & Feasibility
South Lakeland District Council,http://opendatacommunities.org/id/district-council/south-lakeland,31/03/2021,Case Management Regulatory,Central Services,http://opendatacommunities.org/def/concept/finance/sercop/objective/102,The Oyster Partnership,5020374,29/03/2021,153232,792,0,Agency Environmental Health Officer,261300,HR Recruitment & Assessment
South Lakeland District Council,http://opendatacommunities.org/id/district-council/south-lakeland,31/03/2021,Case Management Regulatory,Central Services,http://opendatacommunities.org/def/concept/finance/sercop/objective/102,The Oyster Partnership,5020374,22/03/2021,153811,792,0,Agency Environmental Health Officer,261300,HR Recruitment & Assessment
South Lakeland District Council,http://opendatacommunities.org/id/district-council/south-lakeland,31/03/2021,Case Management Regulatory,Central Services,http://opendatacommunities.org/def/concept/finance/sercop/objective/102,The Oyster Partnership,5020374,29/03/2021,154431,792,0,Agency Environmental Health Officer,261300,HR Recruitment & Assessment
South Lakeland District Council,http://opendatacommunities.org/id/district-council/south-lakeland,31/03/2021,Support Services,Central Services,http://opendatacommunities.org/def/concept/finance/sercop/objective/102,GRANTS- MISCELLANEOUS,,22/03/2021,154301,800,0,Locality donation to fund school,201700,Financial Services Grants
South Lakeland District Council,http://opendatacommunities.org/id/district-council/south-lakeland,31/03/2021,Human Resources,Central Services,http://opendatacommunities.org/def/concept/finance/sercop/objective/102,CHARTERED INST OF ENVIRONMNTL HLTH,,29/03/2021,154415,800,0,Advertisement for Specialist Level 2,202100,Financial Services Subscriptions
South Lakeland District Council,http://opendatacommunities.org/id/district-council/south-lakeland,31/03/2021,Case Management Regulatory,Central Services,http://opendatacommunities.org/def/concept/finance/sercop/objective/102,The Oyster Partnership,5020374,08/03/2021,148710,804.6,0,Agency Environmental Health Officer,261300,HR Recruitment & Assessment
South Lakeland District Council,http://opendatacommunities.org/id/district-council/south-lakeland,31/03/2021,Case Management,Cultural Environmental Regulatory & Planning Services,http://opendatacommunities.org/def/concept/finance/sercop/objective/104,DESIGNWORKS,,08/03/2021,149196,805,0,Invest in South Lakeland website work,191100,Facilities Design & Photography
South Lakeland District Council,http://opendatacommunities.org/id/district-council/south-lakeland,31/03/2021,Business Support Community Services,Cultural Environmental Regulatory & Planning Services,http://opendatacommunities.org/def/concept/finance/sercop/objective/104,Terberg Matec (UK) Ltd,,22/03/2021,153882,814.76,0,Parts,381500,Vehicle Mgt Parts
South Lakeland District Council,http://opendatacommunities.org/id/district-council/south-lakeland,31/03/2021,Case Management Regulatory,Central Services,http://opendatacommunities.org/def/concept/finance/sercop/objective/102,The Oyster Partnership,5020374,29/03/2021,153226,820,0,Agency Environmental Health Officer,261300,HR Recruitment & Assessment
South Lakeland District Council,http://opendatacommunities.org/id/district-council/south-lakeland,31/03/2021,Business Support Community Services,Cultural Environmental Regulatory & Planning Services,http://opendatacommunities.org/def/concept/finance/sercop/objective/104,Harry Park Tyres Ltd,8131208,22/03/2021,153816,839.5,0,Tyres,381500,Vehicle Mgt Parts
South Lakeland District Council,http://opendatacommunities.org/id/district-council/south-lakeland,31/03/2021,Case Management,Housing Services,http://opendatacommunities.org/def/concept/finance/sercop/objective/108,Landlord,,17/03/2021,153866,839.88,0,Monthly rent for Flat  New,250000,Housing
South Lakeland District Council,http://opendatacommunities.org/id/district-council/south-lakeland,31/03/2021,Case Management Account Mgmt,Highways & Transport Services,http://opendatacommunities.org/def/concept/finance/sercop/objective/107,BEMROSE BOOTH PARAGON LTD,4891375,29/03/2021,154464,842.5,0,CAR PARK PERMITS 2021/22,191600,Facilities Printing
South Lakeland District Council,http://opendatacommunities.org/id/district-council/south-lakeland,31/03/2021,Support Services,Central Services,http://opendatacommunities.org/def/concept/finance/sercop/objective/102,Browne Jacobson LLP,OC306448,15/03/2021,153253,850,0,Ref advice- Longlands Park,281200,Legal Services General Support
South Lakeland District Council,http://opendatacommunities.org/id/district-council/south-lakeland,31/03/2021,Business Support Community Services,Cultural Environmental Regulatory & Planning Services,http://opendatacommunities.org/def/concept/finance/sercop/objective/104,HAKO MACHINES LIMITED,1414225,22/03/2021,153887,853.49,0,Repairs,131000,Cleaning & Janitorial Cleaning Materials
South Lakeland District Council,http://opendatacommunities.org/id/district-council/south-lakeland,31/03/2021,Kendal Town Hall,Cultural Environmental Regulatory & Planning Services,http://opendatacommunities.org/def/concept/finance/sercop/objective/104,SICO EUROPE LIMITED,902613,24/03/2021,154101,871,0,Annual service and maintenance of SICO,219999,Furniture Not Elsewhere Classified
South Lakeland District Council,http://opendatacommunities.org/id/district-council/south-lakeland,31/03/2021,Support Services,Central Services,http://opendatacommunities.org/def/concept/finance/sercop/objective/102,VENN GROUP RECRUITMENT SOLUTIONS,,08/03/2021,149121,894.39,0,Time Sheets,261400,HR Temporary & Agency Staff
South Lakeland District Council,http://opendatacommunities.org/id/district-council/south-lakeland,31/03/2021,Support Services,Central Services,http://opendatacommunities.org/def/concept/finance/sercop/objective/102,VENN GROUP RECRUITMENT SOLUTIONS,,08/03/2021,149122,894.39,0,Time Sheets,261400,HR Temporary & Agency Staff
South Lakeland District Council,http://opendatacommunities.org/id/district-council/south-lakeland,31/03/2021,Support Services,Central Services,http://opendatacommunities.org/def/concept/finance/sercop/objective/102,VENN GROUP RECRUITMENT SOLUTIONS,,08/03/2021,149123,894.39,0,Time Sheets,261400,HR Temporary & Agency Staff
South Lakeland District Council,http://opendatacommunities.org/id/district-council/south-lakeland,31/03/2021,Support Services,Central Services,http://opendatacommunities.org/def/concept/finance/sercop/objective/102,VENN GROUP RECRUITMENT SOLUTIONS,,22/03/2021,153801,894.39,0,Time Sheets,261400,HR Temporary & Agency Staff
South Lakeland District Council,http://opendatacommunities.org/id/district-council/south-lakeland,31/03/2021,Support Services,Central Services,http://opendatacommunities.org/def/concept/finance/sercop/objective/102,VENN GROUP RECRUITMENT SOLUTIONS,,22/03/2021,153802,894.39,0,Time Sheets,261400,HR Temporary & Agency Staff
South Lakeland District Council,http://opendatacommunities.org/id/district-council/south-lakeland,31/03/2021,Support Services,Central Services,http://opendatacommunities.org/def/concept/finance/sercop/objective/102,VENN GROUP RECRUITMENT SOLUTIONS,,29/03/2021,154420,894.39,0,Time Sheets,261400,HR Temporary & Agency Staff
South Lakeland District Council,http://opendatacommunities.org/id/district-council/south-lakeland,31/03/2021,Case Management Account Mgmt,Cultural Environmental Regulatory & Planning Services,http://opendatacommunities.org/def/concept/finance/sercop/objective/104,THE SIGN MAN,5748839,29/03/2021,153939,897,0,A5 dibond no dogs signs with,102400,Building Signage
South Lakeland District Council,http://opendatacommunities.org/id/district-council/south-lakeland,31/03/2021,Support Services,SLDC as Agent,,Anna Bailey,,08/03/2021,149191,900,0,Visit Kendal Website - Additional Work,261517,ICT-Consultancy
South Lakeland District Council,http://opendatacommunities.org/id/district-council/south-lakeland,31/03/2021,Support Services,Central Services,http://opendatacommunities.org/def/concept/finance/sercop/objective/102,FORBES SOLICITORS,,15/03/2021,153275,900,0,ref CONT0576 Crudens,281300,Legal Services Legal Opinion
South Lakeland District Council,http://opendatacommunities.org/id/district-council/south-lakeland,31/03/2021,Westmorland Centre Parking Office,Cultural Environmental Regulatory & Planning Services,http://opendatacommunities.org/def/concept/finance/sercop/objective/104,CONTINENTAL LANDSCAPES LTD,2108452,29/03/2021,154589,900,0,Installation of benches in various,391310,Construction Open Spaces Construction
South Lakeland District Council,http://opendatacommunities.org/id/district-council/south-lakeland,31/03/2021,Development Implementation,Cultural Environmental Regulatory & Planning Services,http://opendatacommunities.org/def/concept/finance/sercop/objective/104,Helen Moriarty,,15/03/2021,153757,907.55,0,Project Management Officer for Bowness,151000,Consultancy Business
South Lakeland District Council,http://opendatacommunities.org/id/district-council/south-lakeland,31/03/2021,Case Management,Central Services,http://opendatacommunities.org/def/concept/finance/sercop/objective/102,MORGAN HUNT UK LIMITED,4349535,29/03/2021,154469,925,0,(Revenues Contractor),269999,HR Not Elsewhere Classified
South Lakeland District Council,http://opendatacommunities.org/id/district-council/south-lakeland,31/03/2021,Case Management Account Mgmt,External Trading Accounts,,CONTINENTAL LANDSCAPES LTD,2108452,07/04/2021,154590,942.64,0,New Road grounds maintenance 2020/21,391310,Construction Open Spaces Construction
South Lakeland District Council,http://opendatacommunities.org/id/district-council/south-lakeland,31/03/2021,Business Support Community Services,Cultural Environmental Regulatory & Planning Services,http://opendatacommunities.org/def/concept/finance/sercop/objective/104,Harry Park Tyres Ltd,8131208,29/03/2021,154606,955,0,Tyres,381500,Vehicle Mgt Parts
South Lakeland District Council,http://opendatacommunities.org/id/district-council/south-lakeland,31/03/2021,Case Management Regulatory,Central Services,http://opendatacommunities.org/def/concept/finance/sercop/objective/102,The Oyster Partnership,5020374,29/03/2021,153230,960,0,Agency Environmental Health Officer,261300,HR Recruitment & Assessment
South Lakeland District Council,http://opendatacommunities.org/id/district-council/south-lakeland,31/03/2021,Case Management Regulatory,Central Services,http://opendatacommunities.org/def/concept/finance/sercop/objective/102,The Oyster Partnership,5020374,22/03/2021,153813,960,0,Agency Environmental Health Officer,261300,HR Recruitment & Assessment
South Lakeland District Council,http://opendatacommunities.org/id/district-council/south-lakeland,31/03/2021,Case Management Regulatory,Central Services,http://opendatacommunities.org/def/concept/finance/sercop/objective/102,The Oyster Partnership,5020374,29/03/2021,154435,960,0,Agency Environmental Health Officer,261300,HR Recruitment & Assessment
South Lakeland District Council,http://opendatacommunities.org/id/district-council/south-lakeland,31/03/2021,Case Management Account Mgmt,Central Services,http://opendatacommunities.org/def/concept/finance/sercop/objective/102,STRAMONGATE PRESS LTD (PRINTING A/C),,08/03/2021,148714,964,0,A3 Blue Perforated sheets,191600,Facilities Printing
South Lakeland District Council,http://opendatacommunities.org/id/district-council/south-lakeland,31/03/2021,Case Management Account Mgmt,Cultural Environmental Regulatory & Planning Services,http://opendatacommunities.org/def/concept/finance/sercop/objective/104,Weasdale Nurseries Ltd,,29/03/2021,154262,968.56,0,"For tree planting at Queen's Park,",241600,Horticultural Trees & Shrubs
South Lakeland District Council,http://opendatacommunities.org/id/district-council/south-lakeland,31/03/2021,Case Management,Central Services,http://opendatacommunities.org/def/concept/finance/sercop/objective/102,MORGAN HUNT UK LIMITED,4349535,29/03/2021,154470,975,0,(Revenues Contractor),269999,HR Not Elsewhere Classified
South Lakeland District Council,http://opendatacommunities.org/id/district-council/south-lakeland,31/03/2021,Case Management People,Central Services,http://opendatacommunities.org/def/concept/finance/sercop/objective/102,Eden Brown Limited,,22/03/2021,153927,980.1,0,Payment for ,261400,HR Temporary & Agency Staff
South Lakeland District Council,http://opendatacommunities.org/id/district-council/south-lakeland,31/03/2021,Case Management People,Central Services,http://opendatacommunities.org/def/concept/finance/sercop/objective/102,Eden Brown Limited,,24/03/2021,154285,980.1,0,Payment for ,261400,HR Temporary & Agency Staff
South Lakeland District Council,http://opendatacommunities.org/id/district-council/south-lakeland,31/03/2021,Case Management Regulatory,Central Services,http://opendatacommunities.org/def/concept/finance/sercop/objective/102,CATG Ltd,9682644,10/03/2021,153254,990,0,DWI Private Water Supply Training &,261520,Human Resources Training
South Lakeland District Council,http://opendatacommunities.org/id/district-council/south-lakeland,31/03/2021,Case Management Account Mgmt,Cultural Environmental Regulatory & Planning Services,http://opendatacommunities.org/def/concept/finance/sercop/objective/104,CONTINENTAL LANDSCAPES LTD,2108452,29/03/2021,154588,996,0,Goalmouths at Esthwaite Avenue,391310,Construction Open Spaces Construction
South Lakeland District Council,http://opendatacommunities.org/id/district-council/south-lakeland,31/03/2021,Support Services,Central Services,http://opendatacommunities.org/def/concept/finance/sercop/objective/102,GRANTS- MISCELLANEOUS,,15/03/2021,153248,1000,0,Locality donation to fund planting of,201700,Financial Services Grants
South Lakeland District Council,http://opendatacommunities.org/id/district-council/south-lakeland,31/03/2021,Support Services,SLDC as Agent,,GRANTS- MISCELLANEOUS,,22/03/2021,154290,1000,0,CSP Grant 2020/21,201700,Financial Services Grants
South Lakeland District Council,http://opendatacommunities.org/id/district-council/south-lakeland,31/03/2021,Support Services,Central Services,http://opendatacommunities.org/def/concept/finance/sercop/objective/102,ARNSIDE PARISH COUNCIL,,22/03/2021,154297,1000,0,Locality donation to fund planting in,908000,Public Bodies Council support services
South Lakeland District Council,http://opendatacommunities.org/id/district-council/south-lakeland,31/03/2021,Support Services,Central Services,http://opendatacommunities.org/def/concept/finance/sercop/objective/102,Pilio Ltd,7780333,29/03/2021,154306,1000,0,"Energy management licence, support and",151200,Consultancy Efficiency
South Lakeland District Council,http://opendatacommunities.org/id/district-council/south-lakeland,31/03/2021,Case Management Account Mgmt,Cultural Environmental Regulatory & Planning Services,http://opendatacommunities.org/def/concept/finance/sercop/objective/104,CONTINENTAL LANDSCAPES LTD,2108452,24/03/2021,153923,1011,0,Supply and plant trees at Briarigg,391310,Construction Open Spaces Construction
South Lakeland District Council,http://opendatacommunities.org/id/district-council/south-lakeland,31/03/2021,Business Support Community Services,Cultural Environmental Regulatory & Planning Services,http://opendatacommunities.org/def/concept/finance/sercop/objective/104,GLASDON UK LTD,2160576,24/03/2021,154281,1028.06,0,Glasdon Jubilee� General  Waste Bin in,109999,Building Not Elsewhere Classified
South Lakeland District Council,http://opendatacommunities.org/id/district-council/south-lakeland,31/03/2021,Support Services,Culture and Related Serv,http://opendatacommunities.org/def/concept/finance/sercop/objective/104,Crosby Granger Architects,,29/03/2021,154271,1037.5,0,"Works Associated with 2 & 3 The Square,",391000,Construction Architect
South Lakeland District Council,http://opendatacommunities.org/id/district-council/south-lakeland,31/03/2021,Business Support Community Services,Cultural Environmental Regulatory & Planning Services,http://opendatacommunities.org/def/concept/finance/sercop/objective/104,Southfield RCV Services,,24/03/2021,154377,1045,0,Repairs,380000,Vehicle Management
South Lakeland District Council,http://opendatacommunities.org/id/district-council/south-lakeland,31/03/2021,Business Support Community Services,Cultural Environmental Regulatory & Planning Services,http://opendatacommunities.org/def/concept/finance/sercop/objective/104,Masterstaff Limited,2777593,29/03/2021,154401,1065.6,0,Agency staff,261300,HR Recruitment & Assessment
South Lakeland District Council,http://opendatacommunities.org/id/district-council/south-lakeland,31/03/2021,Case Management,Central Services,http://opendatacommunities.org/def/concept/finance/sercop/objective/102,MORGAN HUNT UK LIMITED,4349535,24/03/2021,154412,1075,0,(Revenues Contractor),269999,HR Not Elsewhere Classified
South Lakeland District Council,http://opendatacommunities.org/id/district-council/south-lakeland,31/03/2021,Business Support Community Services,Cultural Environmental Regulatory & Planning Services,http://opendatacommunities.org/def/concept/finance/sercop/objective/104,Southfield RCV Services,,24/03/2021,154381,1080,0,Repairs,380000,Vehicle Management
South Lakeland District Council,http://opendatacommunities.org/id/district-council/south-lakeland,31/03/2021,Case Management Account Mgmt,Cultural Environmental Regulatory & Planning Services,http://opendatacommunities.org/def/concept/finance/sercop/objective/104,R J MOORHOUSE WELDING & FABRICATIONS,,03/03/2021,148659,1122.15,0,Seat & bench brackets for concreting,391200,Construction Engineering
South Lakeland District Council,http://opendatacommunities.org/id/district-council/south-lakeland,31/03/2021,Business Support Community Services,Cultural Environmental Regulatory & Planning Services,http://opendatacommunities.org/def/concept/finance/sercop/objective/104,CUMBRIA WASTE RECYCLING LTD,3162439,22/03/2021,153851,1143.8,0,Skip emptying at Ecclerigg & Ulverston,182012,Environment Waste Management Recycling
South Lakeland District Council,http://opendatacommunities.org/id/district-council/south-lakeland,31/03/2021,Case Management People,Central Services,http://opendatacommunities.org/def/concept/finance/sercop/objective/102,Eden Brown Limited,,22/03/2021,153926,1160.81,0,Payment for ,261400,HR Temporary & Agency Staff
South Lakeland District Council,http://opendatacommunities.org/id/district-council/south-lakeland,31/03/2021,Case Management People,Central Services,http://opendatacommunities.org/def/concept/finance/sercop/objective/102,Eden Brown Limited,,24/03/2021,154286,1160.81,0,Payment for ,261400,HR Temporary & Agency Staff
South Lakeland District Council,http://opendatacommunities.org/id/district-council/south-lakeland,31/03/2021,Business Support Community Services,Cultural Environmental Regulatory & Planning Services,http://opendatacommunities.org/def/concept/finance/sercop/objective/104,BRIAN ARMISTEAD LTD T/A SINKFALL RECYCLI,4133280,22/03/2021,153849,1170.03,0,Tipping charges - green waste,391110,Construction Buildings Construction
South Lakeland District Council,http://opendatacommunities.org/id/district-council/south-lakeland,31/03/2021,Case Management Account Mgmt,Central Services,http://opendatacommunities.org/def/concept/finance/sercop/objective/102,CFH Docmail Ltd,1716891,29/03/2021,154492,1171.59,0,Revenues Printing 2020-21 (Printing,300000,Mail Services
South Lakeland District Council,http://opendatacommunities.org/id/district-council/south-lakeland,31/03/2021,Business Support Community Services,Cultural Environmental Regulatory & Planning Services,http://opendatacommunities.org/def/concept/finance/sercop/objective/104,Masterstaff Limited,2777593,24/03/2021,154376,1173.6,0,Agency staff,261300,HR Recruitment & Assessment
South Lakeland District Council,http://opendatacommunities.org/id/district-council/south-lakeland,31/03/2021,Case Management,Central Services,http://opendatacommunities.org/def/concept/finance/sercop/objective/102,MORGAN HUNT UK LIMITED,4349535,08/03/2021,148717,1175,0,(Revenues Contractor),269999,HR Not Elsewhere Classified
South Lakeland District Council,http://opendatacommunities.org/id/district-council/south-lakeland,31/03/2021,Case Management,Central Services,http://opendatacommunities.org/def/concept/finance/sercop/objective/102,MORGAN HUNT UK LIMITED,4349535,29/03/2021,154471,1175,0,(Revenues Contractor),269999,HR Not Elsewhere Classified
South Lakeland District Council,http://opendatacommunities.org/id/district-council/south-lakeland,31/03/2021,Case Management People,Central Services,http://opendatacommunities.org/def/concept/finance/sercop/objective/102,Eden Brown Limited,,29/03/2021,154569,1176.19,0,Payment for ,261400,HR Temporary & Agency Staff
South Lakeland District Council,http://opendatacommunities.org/id/district-council/south-lakeland,31/03/2021,Case Management People,Central Services,http://opendatacommunities.org/def/concept/finance/sercop/objective/102,Eden Brown Limited,,29/03/2021,154570,1188.3,0,Payment for ,261400,HR Temporary & Agency Staff
South Lakeland District Council,http://opendatacommunities.org/id/district-council/south-lakeland,31/03/2021,Case Management,Housing Services,http://opendatacommunities.org/def/concept/finance/sercop/objective/108,Landlord,,17/03/2021,153863,1190,0,"Flat, Kent Works, Burneside Road,",202000,Financial Services Rents
South Lakeland District Council,http://opendatacommunities.org/id/district-council/south-lakeland,31/03/2021,Business Support Community Services,Cultural Environmental Regulatory & Planning Services,http://opendatacommunities.org/def/concept/finance/sercop/objective/104,Southfield RCV Services,,24/03/2021,154380,1192.5,0,Repairs,380000,Vehicle Management
South Lakeland District Council,http://opendatacommunities.org/id/district-council/south-lakeland,31/03/2021,Case Management People,Central Services,http://opendatacommunities.org/def/concept/finance/sercop/objective/102,Eden Brown Limited,,22/03/2021,153771,1199.25,0,Payment for,261400,HR Temporary & Agency Staff
South Lakeland District Council,http://opendatacommunities.org/id/district-council/south-lakeland,31/03/2021,Case Management People,Central Services,http://opendatacommunities.org/def/concept/finance/sercop/objective/102,Eden Brown Limited,,22/03/2021,154145,1230,0,Payment for ,261400,HR Temporary & Agency Staff
South Lakeland District Council,http://opendatacommunities.org/id/district-council/south-lakeland,31/03/2021,Business Support Community Services,Cultural Environmental Regulatory & Planning Services,http://opendatacommunities.org/def/concept/finance/sercop/objective/104,BRIAN ARMISTEAD LTD T/A SINKFALL RECYCLI,4133280,29/03/2021,154622,1242.7,0,Tipping charges - green waste,391110,Construction Buildings Construction
South Lakeland District Council,http://opendatacommunities.org/id/district-council/south-lakeland,31/03/2021,Case Management,Central Services,http://opendatacommunities.org/def/concept/finance/sercop/objective/102,MORGAN HUNT UK LIMITED,4349535,29/03/2021,154472,1250,0,(Revenues Contractor),269999,HR Not Elsewhere Classified
South Lakeland District Council,http://opendatacommunities.org/id/district-council/south-lakeland,31/03/2021,Case Management,Central Services,http://opendatacommunities.org/def/concept/finance/sercop/objective/102,MORGAN HUNT UK LIMITED,4349535,29/03/2021,154601,1250,0,(Revenues Contractor),269999,HR Not Elsewhere Classified
South Lakeland District Council,http://opendatacommunities.org/id/district-council/south-lakeland,31/03/2021,ICT Group,Central Services,http://opendatacommunities.org/def/concept/finance/sercop/objective/102,Trams Ltd,,08/03/2021,149124,1277.89,0,Apple 10.2-inch iPad Wi-Fi - 8th,271200,ICT Hardware
South Lakeland District Council,http://opendatacommunities.org/id/district-council/south-lakeland,31/03/2021,Support Services,Central Services,http://opendatacommunities.org/def/concept/finance/sercop/objective/102,GRANTS- MISCELLANEOUS,,15/03/2021,153274,1300,0,Locality donation to fund Kings Food,201700,Financial Services Grants
South Lakeland District Council,http://opendatacommunities.org/id/district-council/south-lakeland,31/03/2021,Westmorland Centre Parking Office,Central Services,http://opendatacommunities.org/def/concept/finance/sercop/objective/102,A Muir Surveying,,07/04/2021,155257,1350,0,Laison with Kimpton re Ferry Nab,152050,Consultancy Property
South Lakeland District Council,http://opendatacommunities.org/id/district-council/south-lakeland,31/03/2021,Case Management Account Mgmt,Central Services,http://opendatacommunities.org/def/concept/finance/sercop/objective/102,The Oyster Partnership,5020374,29/03/2021,125626,1360,0,Agency Staff - Land Charges (,261300,HR Recruitment & Assessment
South Lakeland District Council,http://opendatacommunities.org/id/district-council/south-lakeland,31/03/2021,Case Management Account Mgmt,Central Services,http://opendatacommunities.org/def/concept/finance/sercop/objective/102,The Oyster Partnership,5020374,08/03/2021,148707,1360,0,Agency Staff - Land Charges (,261300,HR Recruitment & Assessment
South Lakeland District Council,http://opendatacommunities.org/id/district-council/south-lakeland,31/03/2021,Case Management Account Mgmt,Central Services,http://opendatacommunities.org/def/concept/finance/sercop/objective/102,The Oyster Partnership,5020374,29/03/2021,153229,1360,0,Agency Staff - Land Charges (,261300,HR Recruitment & Assessment
South Lakeland District Council,http://opendatacommunities.org/id/district-council/south-lakeland,31/03/2021,Case Management Account Mgmt,Cultural Environmental Regulatory & Planning Services,http://opendatacommunities.org/def/concept/finance/sercop/objective/104,SOUTH LAKES TREE SURGEONS & LANDSCAPES,5342745,29/03/2021,153258,1360,0,November tree works package - Rothay,241210,Horticultural Tree Trimming
South Lakeland District Council,http://opendatacommunities.org/id/district-council/south-lakeland,31/03/2021,Case Management Account Mgmt,Central Services,http://opendatacommunities.org/def/concept/finance/sercop/objective/102,The Oyster Partnership,5020374,24/03/2021,153776,1360,0,Agency Staff - Land Charges (,261300,HR Recruitment & Assessment
South Lakeland District Council,http://opendatacommunities.org/id/district-council/south-lakeland,31/03/2021,Business Support Community Services,Cultural Environmental Regulatory & Planning Services,http://opendatacommunities.org/def/concept/finance/sercop/objective/104,Harry Park Tyres Ltd,8131208,29/03/2021,153909,1380,0,Tyres,381500,Vehicle Mgt Parts
South Lakeland District Council,http://opendatacommunities.org/id/district-council/south-lakeland,31/03/2021,Case Management Account Mgmt,Cultural Environmental Regulatory & Planning Services,http://opendatacommunities.org/def/concept/finance/sercop/objective/104,LAMBERT SMITH HAMPTON GROUP,2521225,24/03/2021,154430,1400,0,Viability appraisal assessments for,191700,Facilities Property Management
South Lakeland District Council,http://opendatacommunities.org/id/district-council/south-lakeland,31/03/2021,Case Management Account Mgmt,SLDC as Agent,,ROYAL MAIL GROUP PLC,,03/03/2021,149156,1456.49,0,2020-21 Postal Charges a/c 0198123013,301200,Mail Services� Postage
South Lakeland District Council,http://opendatacommunities.org/id/district-council/south-lakeland,31/03/2021,Case Management,Central Services,http://opendatacommunities.org/def/concept/finance/sercop/objective/102,GRANTS- MISCELLANEOUS,,01/03/2021,149115,1500,0,Climate Change Community Fund grant,201700,Financial Services Grants
South Lakeland District Council,http://opendatacommunities.org/id/district-council/south-lakeland,31/03/2021,Case Management People,Housing Services,http://opendatacommunities.org/def/concept/finance/sercop/objective/108,D Clark Properties,,10/03/2021,153210,1500,0,Accommodation Ramsden Street,250000,Housing
South Lakeland District Council,http://opendatacommunities.org/id/district-council/south-lakeland,31/03/2021,Case Management,Central Services,http://opendatacommunities.org/def/concept/finance/sercop/objective/102,GRANTS- MISCELLANEOUS,,10/03/2021,153727,1500,0,Climate Change Community Fund,201700,Financial Services Grants
South Lakeland District Council,http://opendatacommunities.org/id/district-council/south-lakeland,31/03/2021,Support Services,Central Services,http://opendatacommunities.org/def/concept/finance/sercop/objective/102,KINGS CHAMBERS,7091130,22/03/2021,154240,1500,0,?Response to Montons Pre-Application,281300,Legal Services Legal Opinion
South Lakeland District Council,http://opendatacommunities.org/id/district-council/south-lakeland,31/03/2021,Support Services,Central Services,http://opendatacommunities.org/def/concept/finance/sercop/objective/102,GRANTS- MISCELLANEOUS,,22/03/2021,154255,1500,0,Locality donation to fund park,201700,Financial Services Grants
South Lakeland District Council,http://opendatacommunities.org/id/district-council/south-lakeland,31/03/2021,Case Management People,Housing Services,http://opendatacommunities.org/def/concept/finance/sercop/objective/108,D Clark Properties,,24/03/2021,154413,1500,0,Accommodation Ramsden Street,250000,Housing
South Lakeland District Council,http://opendatacommunities.org/id/district-council/south-lakeland,31/03/2021,Case Management,Central Services,http://opendatacommunities.org/def/concept/finance/sercop/objective/102,GRANTS- MISCELLANEOUS,,10/03/2021,153728,1507,0,Climate Change Community Fund,201700,Financial Services Grants
South Lakeland District Council,http://opendatacommunities.org/id/district-council/south-lakeland,31/03/2021,Case Management Account Mgmt,Cultural Environmental Regulatory & Planning Services,http://opendatacommunities.org/def/concept/finance/sercop/objective/104,CONTINENTAL LANDSCAPES LTD,2108452,29/03/2021,144758,1512.5,0,Plant 50 trees in the hedge line,391310,Construction Open Spaces Construction
South Lakeland District Council,http://opendatacommunities.org/id/district-council/south-lakeland,31/03/2021,Human Resources,Central Services,http://opendatacommunities.org/def/concept/finance/sercop/objective/102,Choose Occupational Health,7365943,15/03/2021,153234,1527.5,0,OHP Appointment - ,191800,Facilities Public Relations & Image
South Lakeland District Council,http://opendatacommunities.org/id/district-council/south-lakeland,31/03/2021,Development Management,Central Services,http://opendatacommunities.org/def/concept/finance/sercop/objective/102,The Oyster Partnership,5020374,08/03/2021,148709,1542.5,0,Supply of Contract workers for Planning,261300,HR Recruitment & Assessment
South Lakeland District Council,http://opendatacommunities.org/id/district-council/south-lakeland,31/03/2021,Case Management Account Mgmt,SLDC as Agent,,ROYAL MAIL GROUP PLC,,29/03/2021,154261,1545.33,0,2020-21 Postal Charges a/c 0198123013,301200,Mail Services� Postage
South Lakeland District Council,http://opendatacommunities.org/id/district-council/south-lakeland,31/03/2021,Development Management,Central Services,http://opendatacommunities.org/def/concept/finance/sercop/objective/102,The Oyster Partnership,5020374,29/03/2021,154432,1555.2,0,Supply of Contract workers for Planning,261300,HR Recruitment & Assessment
South Lakeland District Council,http://opendatacommunities.org/id/district-council/south-lakeland,31/03/2021,Development Management,Central Services,http://opendatacommunities.org/def/concept/finance/sercop/objective/102,The Oyster Partnership,5020374,22/03/2021,153228,1560,0,Supply of Contract workers for Planning,261300,HR Recruitment & Assessment
South Lakeland District Council,http://opendatacommunities.org/id/district-council/south-lakeland,31/03/2021,Development Management,Central Services,http://opendatacommunities.org/def/concept/finance/sercop/objective/102,The Oyster Partnership,5020374,17/03/2021,153779,1560,0,Supply of Contract workers for Planning,261300,HR Recruitment & Assessment
South Lakeland District Council,http://opendatacommunities.org/id/district-council/south-lakeland,31/03/2021,Case Management Account Mgmt,Cultural Environmental Regulatory & Planning Services,http://opendatacommunities.org/def/concept/finance/sercop/objective/104,HORSEMAT LTD,5738280,15/03/2021,153257,1569.72,0,Grass Support Rubber Hollow Mats 1m x,901011,Animals Horses Equipment
South Lakeland District Council,http://opendatacommunities.org/id/district-council/south-lakeland,31/03/2021,Human Resources,Central Services,http://opendatacommunities.org/def/concept/finance/sercop/objective/102,MIDLAND SOFTWARE LTD,1852206,01/03/2021,155306,1593,0,"Business Objects 4.3 1.5 days, time and",271600,ICT Software Customised & Bespoke
South Lakeland District Council,http://opendatacommunities.org/id/district-council/south-lakeland,31/03/2021,Business Support Community Services,Cultural Environmental Regulatory & Planning Services,http://opendatacommunities.org/def/concept/finance/sercop/objective/104,Masterstaff Limited,2777593,24/03/2021,154383,1598.4,0,Agency staff,261300,HR Recruitment & Assessment
South Lakeland District Council,http://opendatacommunities.org/id/district-council/south-lakeland,31/03/2021,ICT Group,Central Services,http://opendatacommunities.org/def/concept/finance/sercop/objective/102,IMPROVEMENT & DEVELOPMENT AGENCY,3675577,22/03/2021,154384,1613,0,LG Inform PLUS subscription renewal.,202100,Financial Services Subscriptions
South Lakeland District Council,http://opendatacommunities.org/id/district-council/south-lakeland,31/03/2021,Case Management People,Housing Services,http://opendatacommunities.org/def/concept/finance/sercop/objective/108,James Andrews Recruitment Solutions,6834852,08/03/2021,149214,1652.28,0,Payment for ,261400,HR Temporary & Agency Staff
South Lakeland District Council,http://opendatacommunities.org/id/district-council/south-lakeland,31/03/2021,Case Management People,Housing Services,http://opendatacommunities.org/def/concept/finance/sercop/objective/108,James Andrews Recruitment Solutions,6834852,22/03/2021,153734,1652.28,0,Payment for ,261400,HR Temporary & Agency Staff
South Lakeland District Council,http://opendatacommunities.org/id/district-council/south-lakeland,31/03/2021,Case Management People,Housing Services,http://opendatacommunities.org/def/concept/finance/sercop/objective/108,James Andrews Recruitment Solutions,6834852,22/03/2021,154243,1652.28,0,Payment for ,261400,HR Temporary & Agency Staff
South Lakeland District Council,http://opendatacommunities.org/id/district-council/south-lakeland,31/03/2021,Case Management People,Housing Services,http://opendatacommunities.org/def/concept/finance/sercop/objective/108,James Andrews Recruitment Solutions,6834852,29/03/2021,154508,1652.28,0,Payment for,261400,HR Temporary & Agency Staff
South Lakeland District Council,http://opendatacommunities.org/id/district-council/south-lakeland,31/03/2021,Case Management,Cultural Environmental Regulatory & Planning Services,http://opendatacommunities.org/def/concept/finance/sercop/objective/104,DESIGNWORKS,,08/03/2021,149196,1701,0,Invest in South Lakeland website work,191100,Facilities Design & Photography
South Lakeland District Council,http://opendatacommunities.org/id/district-council/south-lakeland,31/03/2021,Case Management Account Mgmt,Cultural Environmental Regulatory & Planning Services,http://opendatacommunities.org/def/concept/finance/sercop/objective/104,CONTINENTAL LANDSCAPES LTD,2108452,03/03/2021,148699,1741.4,0,Parks Routine Maintenance from April,391310,Construction Open Spaces Construction
South Lakeland District Council,http://opendatacommunities.org/id/district-council/south-lakeland,31/03/2021,Case Management Account Mgmt,Cultural Environmental Regulatory & Planning Services,http://opendatacommunities.org/def/concept/finance/sercop/objective/104,CONTINENTAL LANDSCAPES LTD,2108452,07/04/2021,155302,1741.83,0,Parks Routine Maintenance from April,391310,Construction Open Spaces Construction
South Lakeland District Council,http://opendatacommunities.org/id/district-council/south-lakeland,31/03/2021,Support Services,Central Services,http://opendatacommunities.org/def/concept/finance/sercop/objective/102,RICARDO-AEA,8229264,03/03/2021,149143,1768,0,Assessing the offsetting potential for,159999,Consultancy Not Elsewhere Classified
South Lakeland District Council,http://opendatacommunities.org/id/district-council/south-lakeland,31/03/2021,Case Management,Central Services,http://opendatacommunities.org/def/concept/finance/sercop/objective/102,LA DIRECTORIES LTD,4795818,01/03/2021,148570,1790,0,HB Subsidy Masterclass,202100,Financial Services Subscriptions
South Lakeland District Council,http://opendatacommunities.org/id/district-council/south-lakeland,31/03/2021,Support Services,SLDC as Agent,,GRANTS- MISCELLANEOUS,,08/03/2021,149221,1790,0,CSP Grant 2020/21,201700,Financial Services Grants
South Lakeland District Council,http://opendatacommunities.org/id/district-council/south-lakeland,31/03/2021,Case Management Regulatory,Cultural Environmental Regulatory & Planning Services,http://opendatacommunities.org/def/concept/finance/sercop/objective/104,MOGO UK,3091301,22/03/2021,153933,1826.9,0,HCV vinyl door signs,281400,Legal Services Specialist Support
South Lakeland District Council,http://opendatacommunities.org/id/district-council/south-lakeland,31/03/2021,Case Management Regulatory,Central Services,http://opendatacommunities.org/def/concept/finance/sercop/objective/102,Carrington West,,08/03/2021,148668,1863,0,Planning Enforcement contract officer,159999,Consultancy Not Elsewhere Classified
South Lakeland District Council,http://opendatacommunities.org/id/district-council/south-lakeland,31/03/2021,Case Management Regulatory,Central Services,http://opendatacommunities.org/def/concept/finance/sercop/objective/102,Carrington West,,08/03/2021,148716,1863,0,Planning Enforcement contract officer,159999,Consultancy Not Elsewhere Classified
South Lakeland District Council,http://opendatacommunities.org/id/district-council/south-lakeland,31/03/2021,Case Management Regulatory,Central Services,http://opendatacommunities.org/def/concept/finance/sercop/objective/102,Carrington West,,15/03/2021,153282,1863,0,Planning Enforcement contract officer,159999,Consultancy Not Elsewhere Classified
South Lakeland District Council,http://opendatacommunities.org/id/district-council/south-lakeland,31/03/2021,Case Management Regulatory,Central Services,http://opendatacommunities.org/def/concept/finance/sercop/objective/102,Carrington West,,22/03/2021,154239,1863,0,Planning Enforcement contract officer,159999,Consultancy Not Elsewhere Classified
South Lakeland District Council,http://opendatacommunities.org/id/district-council/south-lakeland,31/03/2021,Case Management Regulatory,Central Services,http://opendatacommunities.org/def/concept/finance/sercop/objective/102,Carrington West,,29/03/2021,154437,1863,0,Planning Enforcement contract officer,159999,Consultancy Not Elsewhere Classified
South Lakeland District Council,http://opendatacommunities.org/id/district-council/south-lakeland,31/03/2021,Case Management Regulatory,Central Services,http://opendatacommunities.org/def/concept/finance/sercop/objective/102,Carrington West,,29/03/2021,154602,1863,0,Planning Enforcement contract officer,159999,Consultancy Not Elsewhere Classified
South Lakeland District Council,http://opendatacommunities.org/id/district-council/south-lakeland,31/03/2021,Case Management Account Mgmt,Cultural Environmental Regulatory & Planning Services,http://opendatacommunities.org/def/concept/finance/sercop/objective/104,KOMPAN Scotland Ltd,SC127228,07/04/2021,155301,1874.6,0,Swing Frame KSW90014-0902,331000,Sports Playground Equipment
South Lakeland District Council,http://opendatacommunities.org/id/district-council/south-lakeland,31/03/2021,Business Support Community Services,Cultural Environmental Regulatory & Planning Services,http://opendatacommunities.org/def/concept/finance/sercop/objective/104,Southfield RCV Services,,24/03/2021,154378,1885,0,Repairs,380000,Vehicle Management
South Lakeland District Council,http://opendatacommunities.org/id/district-council/south-lakeland,31/03/2021,Case Management,Central Services,http://opendatacommunities.org/def/concept/finance/sercop/objective/102,NEWSQUEST MEDIA GROUP LTD,3102566,29/03/2021,154302,1899,0,Westmorland Gazette - Public Notice,191000,Facilities Advertising
South Lakeland District Council,http://opendatacommunities.org/id/district-council/south-lakeland,31/03/2021,Case Management Account Mgmt,Cultural Environmental Regulatory & Planning Services,http://opendatacommunities.org/def/concept/finance/sercop/objective/104,CONTINENTAL LANDSCAPES LTD,2108452,29/03/2021,154587,1900.83,0,Extra works for grounds maintenance,391310,Construction Open Spaces Construction
South Lakeland District Council,http://opendatacommunities.org/id/district-council/south-lakeland,31/03/2021,Case Management Account Mgmt,Cultural Environmental Regulatory & Planning Services,http://opendatacommunities.org/def/concept/finance/sercop/objective/104,CONTINENTAL LANDSCAPES LTD,2108452,15/03/2021,148697,1926.35,0,To improve drainage at Lightburn Park,391310,Construction Open Spaces Construction
South Lakeland District Council,http://opendatacommunities.org/id/district-council/south-lakeland,31/03/2021,Business Support Community Services,Cultural Environmental Regulatory & Planning Services,http://opendatacommunities.org/def/concept/finance/sercop/objective/104,FAUN ZOELLER (UK) LTD,751804,07/04/2021,155266,1939.37,0,Repairs,381400,Vehicle Mgt Maintenance
South Lakeland District Council,http://opendatacommunities.org/id/district-council/south-lakeland,31/03/2021,Technical Team,Central Services,http://opendatacommunities.org/def/concept/finance/sercop/objective/102,Macdonald & Company Freelance Ltd,3882135,29/03/2021,154278,1969.33,0,PLANNING CONTRACT STAFF,261400,HR Temporary & Agency Staff
South Lakeland District Council,http://opendatacommunities.org/id/district-council/south-lakeland,31/03/2021,Support Services,SLDC as Agent,,Cumbria Alcohol and Drug Advisory Serv,,08/03/2021,149220,2000,0,CSP Grant 20/21,261500,HR Training & Conferences
South Lakeland District Council,http://opendatacommunities.org/id/district-council/south-lakeland,31/03/2021,ICT Group,Central Services,http://opendatacommunities.org/def/concept/finance/sercop/objective/102,IT PROFESSIONAL SERVICES (ITPS),,08/03/2021,149223,2000,0,Public IP addresses for 500mb remote,279999,ICT Not Elsewhere Classified
South Lakeland District Council,http://opendatacommunities.org/id/district-council/south-lakeland,31/03/2021,Support Services,SLDC as Agent,,PS BUSINESS MATTERS,8147185,15/03/2021,153300,2000,0,Kendal Futures Programme Support,151900,Consultancy Management
South Lakeland District Council,http://opendatacommunities.org/id/district-council/south-lakeland,31/03/2021,Support Services,SLDC as Agent,,PS BUSINESS MATTERS,8147185,29/03/2021,154510,2000,0,Kendal Futures Programme Support,151900,Consultancy Management
South Lakeland District Council,http://opendatacommunities.org/id/district-council/south-lakeland,31/03/2021,Case Management Account Mgmt,Cultural Environmental Regulatory & Planning Services,http://opendatacommunities.org/def/concept/finance/sercop/objective/104,CONTINENTAL LANDSCAPES LTD,2108452,03/03/2021,148699,2009.8,0,Parks Routine Maintenance from April,391310,Construction Open Spaces Construction
South Lakeland District Council,http://opendatacommunities.org/id/district-council/south-lakeland,31/03/2021,Case Management Account Mgmt,Cultural Environmental Regulatory & Planning Services,http://opendatacommunities.org/def/concept/finance/sercop/objective/104,CONTINENTAL LANDSCAPES LTD,2108452,07/04/2021,155302,2009.8,0,Parks Routine Maintenance from April,391310,Construction Open Spaces Construction
South Lakeland District Council,http://opendatacommunities.org/id/district-council/south-lakeland,31/03/2021,Support Services,Central Services,http://opendatacommunities.org/def/concept/finance/sercop/objective/102,LAVAT Consulting t/a PSTAX,4810070,15/03/2021,153743,2065,0,2021/22 VAT and Employment Tax,202100,Financial Services Subscriptions
South Lakeland District Council,http://opendatacommunities.org/id/district-council/south-lakeland,31/03/2021,Technical Team,Central Services,http://opendatacommunities.org/def/concept/finance/sercop/objective/102,Macdonald & Company Freelance Ltd,3882135,29/03/2021,148715,2076.67,0,PLANNING CONTRACT STAFF,261400,HR Temporary & Agency Staff
South Lakeland District Council,http://opendatacommunities.org/id/district-council/south-lakeland,31/03/2021,Business Support Community Services,Cultural Environmental Regulatory & Planning Services,http://opendatacommunities.org/def/concept/finance/sercop/objective/104,Harry Park Tyres Ltd,8131208,29/03/2021,153942,2080,0,Tyres,381500,Vehicle Mgt Parts
South Lakeland District Council,http://opendatacommunities.org/id/district-council/south-lakeland,31/03/2021,Case Management People,Central Services,http://opendatacommunities.org/def/concept/finance/sercop/objective/102,MORGAN HUNT UK LIMITED,4349535,08/03/2021,148180,2138.5,0,Payment for ,269999,HR Not Elsewhere Classified
South Lakeland District Council,http://opendatacommunities.org/id/district-council/south-lakeland,31/03/2021,Case Management People,Central Services,http://opendatacommunities.org/def/concept/finance/sercop/objective/102,MORGAN HUNT UK LIMITED,4349535,29/03/2021,154512,2138.5,0,Payment for ,269999,HR Not Elsewhere Classified
South Lakeland District Council,http://opendatacommunities.org/id/district-council/south-lakeland,31/03/2021,Technical Team,Central Services,http://opendatacommunities.org/def/concept/finance/sercop/objective/102,Macdonald & Company Freelance Ltd,3882135,29/03/2021,154573,2142,0,PLANNING CONTRACT STAFF,261400,HR Temporary & Agency Staff
South Lakeland District Council,http://opendatacommunities.org/id/district-council/south-lakeland,31/03/2021,Technical Team,Central Services,http://opendatacommunities.org/def/concept/finance/sercop/objective/102,Macdonald & Company Freelance Ltd,3882135,29/03/2021,154275,2156,0,PLANNING CONTRACT STAFF,261400,HR Temporary & Agency Staff
South Lakeland District Council,http://opendatacommunities.org/id/district-council/south-lakeland,31/03/2021,Case Management People,Central Services,http://opendatacommunities.org/def/concept/finance/sercop/objective/102,MORGAN HUNT UK LIMITED,4349535,17/03/2021,153221,2185.5,0,Payment for ,269999,HR Not Elsewhere Classified
South Lakeland District Council,http://opendatacommunities.org/id/district-council/south-lakeland,31/03/2021,Business Support Community Services,Cultural Environmental Regulatory & Planning Services,http://opendatacommunities.org/def/concept/finance/sercop/objective/104,PENNINGTONS (KENDAL) LIMITED,434649,03/03/2021,149154,2200,0,Annual Charge for use of Link Road at,182013,Environment Waste Mgt Waste Collection
South Lakeland District Council,http://opendatacommunities.org/id/district-council/south-lakeland,31/03/2021,Case Management People,Central Services,http://opendatacommunities.org/def/concept/finance/sercop/objective/102,MORGAN HUNT UK LIMITED,4349535,03/03/2021,147451,2209,0,Payment for ,269999,HR Not Elsewhere Classified
South Lakeland District Council,http://opendatacommunities.org/id/district-council/south-lakeland,31/03/2021,Case Management People,Central Services,http://opendatacommunities.org/def/concept/finance/sercop/objective/102,MORGAN HUNT UK LIMITED,4349535,03/03/2021,149188,2209,0,Payment for ,269999,HR Not Elsewhere Classified
South Lakeland District Council,http://opendatacommunities.org/id/district-council/south-lakeland,31/03/2021,Technical Team,Central Services,http://opendatacommunities.org/def/concept/finance/sercop/objective/102,Macdonald & Company Freelance Ltd,3882135,29/03/2021,153252,2221.33,0,PLANNING CONTRACT STAFF,261400,HR Temporary & Agency Staff
South Lakeland District Council,http://opendatacommunities.org/id/district-council/south-lakeland,31/03/2021,Case Management Account Mgmt,Cultural Environmental Regulatory & Planning Services,http://opendatacommunities.org/def/concept/finance/sercop/objective/104,CONTINENTAL LANDSCAPES LTD,2108452,01/03/2021,148692,2227.36,0,For disposal of waste to Kendal Fell,391310,Construction Open Spaces Construction
South Lakeland District Council,http://opendatacommunities.org/id/district-council/south-lakeland,31/03/2021,Case Management Account Mgmt,Cultural Environmental Regulatory & Planning Services,http://opendatacommunities.org/def/concept/finance/sercop/objective/104,CONTINENTAL LANDSCAPES LTD,2108452,07/04/2021,155303,2227.36,0,For disposal of waste to Kendal Fell,391310,Construction Open Spaces Construction
South Lakeland District Council,http://opendatacommunities.org/id/district-council/south-lakeland,31/03/2021,Case Management People,Central Services,http://opendatacommunities.org/def/concept/finance/sercop/objective/102,MORGAN HUNT UK LIMITED,4349535,15/03/2021,153761,2232.5,0,Payment for,269999,HR Not Elsewhere Classified
South Lakeland District Council,http://opendatacommunities.org/id/district-council/south-lakeland,31/03/2021,Support Services,Central Services,http://opendatacommunities.org/def/concept/finance/sercop/objective/102,RICARDO-AEA,8229264,22/03/2021,154257,2233,0,Assessing the offsetting potential for,159999,Consultancy Not Elsewhere Classified
South Lakeland District Council,http://opendatacommunities.org/id/district-council/south-lakeland,31/03/2021,Support Services,Central Services,http://opendatacommunities.org/def/concept/finance/sercop/objective/102,Browne Jacobson LLP,OC306448,15/03/2021,153250,2300,0,legal advice on subsidy control-ref,281200,Legal Services General Support
South Lakeland District Council,http://opendatacommunities.org/id/district-council/south-lakeland,31/03/2021,Case Management People,Housing Services,http://opendatacommunities.org/def/concept/finance/sercop/objective/108,The Cumberland Hotel,,07/04/2021,155255,2300,0,Accommodation The Cumberland Hotel,250000,Housing
South Lakeland District Council,http://opendatacommunities.org/id/district-council/south-lakeland,31/03/2021,Case Management People,Central Services,http://opendatacommunities.org/def/concept/finance/sercop/objective/102,MORGAN HUNT UK LIMITED,4349535,22/03/2021,154300,2303,0,Payment for ,269999,HR Not Elsewhere Classified
South Lakeland District Council,http://opendatacommunities.org/id/district-council/south-lakeland,31/03/2021,Business Support Community Services,Cultural Environmental Regulatory & Planning Services,http://opendatacommunities.org/def/concept/finance/sercop/objective/104,Masterstaff Limited,2777593,03/03/2021,149131,2325.6,0,Agency staff,261300,HR Recruitment & Assessment
South Lakeland District Council,http://opendatacommunities.org/id/district-council/south-lakeland,31/03/2021,Business Support Community Services,Cultural Environmental Regulatory & Planning Services,http://opendatacommunities.org/def/concept/finance/sercop/objective/104,SOLWAY DAF,1393710,03/03/2021,149151,2393.42,0,Repairs,381000,Vehicle Mgt Commercial
South Lakeland District Council,http://opendatacommunities.org/id/district-council/south-lakeland,31/03/2021,Case Management Account Mgmt,Central Services,http://opendatacommunities.org/def/concept/finance/sercop/objective/102,CFH Docmail Ltd,1716891,29/03/2021,154491,2449.78,0,Revenues Printing 2020-21 (Printing,300000,Mail Services
South Lakeland District Council,http://opendatacommunities.org/id/district-council/south-lakeland,31/03/2021,Support Services,Central Services,http://opendatacommunities.org/def/concept/finance/sercop/objective/102,Liftshare.com Ltd,3968472,29/03/2021,154483,2450,0,Lift share.com Ltd supply of Viability,152200,Consultancy Technical & Feasibility
South Lakeland District Council,http://opendatacommunities.org/id/district-council/south-lakeland,31/03/2021,Case Management People,Housing Services,http://opendatacommunities.org/def/concept/finance/sercop/objective/108,KENDAL HOSTEL,,15/03/2021,153292,2550,0,Accommodation 01/07/2020 - 24/09/2020,261000,HR Accommodation
South Lakeland District Council,http://opendatacommunities.org/id/district-council/south-lakeland,31/03/2021,Case Management Account Mgmt,Cultural Environmental Regulatory & Planning Services,http://opendatacommunities.org/def/concept/finance/sercop/objective/104,SOUTH LAKES TREE SURGEONS & LANDSCAPES,5342745,15/03/2021,153762,2600,0,October 2020 tree works - Ecclerigg,241210,Horticultural Tree Trimming
South Lakeland District Council,http://opendatacommunities.org/id/district-council/south-lakeland,31/03/2021,Business Support Community Services,SLDC as Agent,,Viewdeck Consulting Limited,,29/03/2021,154595,2685,0,Cumbria Choice Consultancy Work,150000,Consultancy
South Lakeland District Council,http://opendatacommunities.org/id/district-council/south-lakeland,31/03/2021,Case Management Account Mgmt,Central Services,http://opendatacommunities.org/def/concept/finance/sercop/objective/102,ROSEFOX PAPER LIMITED,1655083,03/03/2021,149140,2700,0,A4 Trophee Lilac,341000,Stationery Paper
South Lakeland District Council,http://opendatacommunities.org/id/district-council/south-lakeland,31/03/2021,Case Management Regulatory,Central Services,http://opendatacommunities.org/def/concept/finance/sercop/objective/102,Richard A Majewicz,,10/03/2021,153206,2700,0,Specialists-Place Contract & Agency,159999,Consultancy Not Elsewhere Classified
South Lakeland District Council,http://opendatacommunities.org/id/district-council/south-lakeland,31/03/2021,Support Services,Central Services,http://opendatacommunities.org/def/concept/finance/sercop/objective/102,KENDAL TOWN COUNCIL,,24/03/2021,154465,2700,0,Locality donation to fund improvements,908000,Public Bodies Council support services
South Lakeland District Council,http://opendatacommunities.org/id/district-council/south-lakeland,31/03/2021,ICT Group,Central Services,http://opendatacommunities.org/def/concept/finance/sercop/objective/102,EDEN DISTRICT COUNCIL,,07/04/2021,155261,2700,0,Revs and Bens Digital Project,908000,Public Bodies Council support services
South Lakeland District Council,http://opendatacommunities.org/id/district-council/south-lakeland,31/03/2021,Westmorland Centre Parking Office,Central Services,http://opendatacommunities.org/def/concept/finance/sercop/objective/102,KIMPTON energy solutions,781553,15/03/2021,153276,2750,0,Feasibility study for water source heat,151200,Consultancy Efficiency
South Lakeland District Council,http://opendatacommunities.org/id/district-council/south-lakeland,31/03/2021,Case Management People,Housing Services,http://opendatacommunities.org/def/concept/finance/sercop/objective/108,HOME GROUP LTD,IP22981R,15/03/2021,153744,2765.14,0,Monthly lease of HMO for TA,250000,Housing
South Lakeland District Council,http://opendatacommunities.org/id/district-council/south-lakeland,31/03/2021,Customer Services,Cultural Environmental Regulatory & Planning Services,http://opendatacommunities.org/def/concept/finance/sercop/objective/104,MILNTHORPE KENNELS & CATTERY,8932302,15/03/2021,153281,2791.67,0,Stray dog contract 2020/21 collection,181500,Environment Animal Services
South Lakeland District Council,http://opendatacommunities.org/id/district-council/south-lakeland,31/03/2021,Lake Wardens,Central Services,http://opendatacommunities.org/def/concept/finance/sercop/objective/102,LYNCH MOTOR COMPANY LTD,4555463,07/04/2021,155287,2813.82,0,1 x Alltrax SR72500,907999,Marine Not Elsewhere Classified
South Lakeland District Council,http://opendatacommunities.org/id/district-council/south-lakeland,31/03/2021,ICT Group,Central Services,http://opendatacommunities.org/def/concept/finance/sercop/objective/102,THE DOCUMENT MANAGEMENT GROUP LTD,5210023,29/03/2021,154273,2850,0,Fujitsu FI5750 scanner maintenance.,191200,Facilities Document Archiving & Storage
South Lakeland District Council,http://opendatacommunities.org/id/district-council/south-lakeland,31/03/2021,Case Management Account Mgmt,Cultural Environmental Regulatory & Planning Services,http://opendatacommunities.org/def/concept/finance/sercop/objective/104,CUMBRIA TOURISM,3027358,15/03/2021,153267,2945,0,STEAM Research,291400,Arts & Leisure Services Sport & Fitness
South Lakeland District Council,http://opendatacommunities.org/id/district-council/south-lakeland,31/03/2021,Case Management People,SLDC as Agent,,CIVICA UK LTD,1628868,29/03/2021,153881,2948.23,0,Partnership fees 01/04/21 - 31/07/21,271600,ICT Software Customised & Bespoke
South Lakeland District Council,http://opendatacommunities.org/id/district-council/south-lakeland,31/03/2021,Case Management People,SLDC as Agent,,CIVICA UK LTD,1628868,29/03/2021,154577,2948.23,0,Partnership fees 01/04/21 - 31/07/21,271600,ICT Software Customised & Bespoke
South Lakeland District Council,http://opendatacommunities.org/id/district-council/south-lakeland,31/03/2021,Case Management People,SLDC as Agent,,CIVICA UK LTD,1628868,29/03/2021,154578,2948.23,0,Partnership fees 01/04/21 - 31/07/21,271600,ICT Software Customised & Bespoke
South Lakeland District Council,http://opendatacommunities.org/id/district-council/south-lakeland,31/03/2021,Case Management People,SLDC as Agent,,CIVICA UK LTD,1628868,29/03/2021,154591,2948.23,0,Partnership fees 01/04/21 - 31/07/21,271600,ICT Software Customised & Bespoke
South Lakeland District Council,http://opendatacommunities.org/id/district-council/south-lakeland,31/03/2021,Case Management People,SLDC as Agent,,CIVICA UK LTD,1628868,29/03/2021,154592,2948.23,0,Partnership fees 01/04/21 - 31/07/21,271600,ICT Software Customised & Bespoke
South Lakeland District Council,http://opendatacommunities.org/id/district-council/south-lakeland,31/03/2021,Case Management People,SLDC as Agent,,CIVICA UK LTD,1628868,29/03/2021,154593,2948.23,0,Partnership fees 01/04/21 - 31/07/21,271600,ICT Software Customised & Bespoke
South Lakeland District Council,http://opendatacommunities.org/id/district-council/south-lakeland,31/03/2021,Human Resources,Central Services,http://opendatacommunities.org/def/concept/finance/sercop/objective/102,Action Learning Associates LTD,,15/03/2021,153747,2985,0,23-25 Febuary 2021,261500,HR Training & Conferences
South Lakeland District Council,http://opendatacommunities.org/id/district-council/south-lakeland,31/03/2021,ICT Group,Central Services,http://opendatacommunities.org/def/concept/finance/sercop/objective/102,PROBRAND LTD,2653446,07/04/2021,155297,3006,0,SL173/SM-A202FZWDBTU Samsung - **,271600,ICT Software Customised & Bespoke
South Lakeland District Council,http://opendatacommunities.org/id/district-council/south-lakeland,31/03/2021,Case Management Account Mgmt,Cultural Environmental Regulatory & Planning Services,http://opendatacommunities.org/def/concept/finance/sercop/objective/104,Proludic Ltd,4455803,29/03/2021,154572,3174.08,0,J2400 including delivery,331200,Sports & Playground- Maintenance- Servic
South Lakeland District Council,http://opendatacommunities.org/id/district-council/south-lakeland,31/03/2021,Support Services,Highways & Transport Services,http://opendatacommunities.org/def/concept/finance/sercop/objective/107,Bloom Procurement Services Ltd,,29/03/2021,154493,3210.53,0,Arnside Parking Strategy,151900,Consultancy Management
South Lakeland District Council,http://opendatacommunities.org/id/district-council/south-lakeland,31/03/2021,Westmorland Centre Parking Office,Highways & Transport Services,http://opendatacommunities.org/def/concept/finance/sercop/objective/107,NEWSQUEST MEDIA GROUP LTD,3102566,22/03/2021,154190,3231.36,0,OSPPO Notice for the Westmorland Gazette,191000,Facilities Advertising
South Lakeland District Council,http://opendatacommunities.org/id/district-council/south-lakeland,31/03/2021,ICT Group,Central Services,http://opendatacommunities.org/def/concept/finance/sercop/objective/102,TA and MB Ltd trading as TextAnywhere,,15/03/2021,153764,3260,0,100000 (one hundred thousand) SMS,271699,ICT- Telecommunications
South Lakeland District Council,http://opendatacommunities.org/id/district-council/south-lakeland,31/03/2021,Case Management Account Mgmt,Central Services,http://opendatacommunities.org/def/concept/finance/sercop/objective/102,CAPITA BUSINESS SERVICES LTD (NCR),,01/03/2021,153758,3303.84,0,2020-21 Internet Payment / bank charges,261500,HR Training & Conferences
South Lakeland District Council,http://opendatacommunities.org/id/district-council/south-lakeland,31/03/2021,Case Management Regulatory,Cultural Environmental Regulatory & Planning Services,http://opendatacommunities.org/def/concept/finance/sercop/objective/104,Haymarket Media Group Ltd,267189,17/03/2021,153268,3330,0,DCP Compass Online Subscription,171114,Education Literature
South Lakeland District Council,http://opendatacommunities.org/id/district-council/south-lakeland,31/03/2021,Assets and Commercial Services,Central Services,http://opendatacommunities.org/def/concept/finance/sercop/objective/102,Citation Limited T/A Southalls,5751804,17/03/2021,153804,3370,0,Complete Fire Risk assessments as per,202100,Financial Services Subscriptions
South Lakeland District Council,http://opendatacommunities.org/id/district-council/south-lakeland,31/03/2021,Business Support Community Services,Central Services,http://opendatacommunities.org/def/concept/finance/sercop/objective/102,CUMBRIA COUNTY COUNCIL,,29/03/2021,153760,3408,0,LAND CHARGE SEARCH ENQUIRIES COMMONS,908000,Public Bodies Council support services
South Lakeland District Council,http://opendatacommunities.org/id/district-council/south-lakeland,31/03/2021,Business Support Community Services,Cultural Environmental Regulatory & Planning Services,http://opendatacommunities.org/def/concept/finance/sercop/objective/104,GLASDON UK LTD,2160576,29/03/2021,154526,3426.86,0,Glasdon Jubilee� General  Waste Bin in,109999,Building Not Elsewhere Classified
South Lakeland District Council,http://opendatacommunities.org/id/district-council/south-lakeland,31/03/2021,Business Support Community Services,Central Services,http://opendatacommunities.org/def/concept/finance/sercop/objective/102,CUMBRIA COUNTY COUNCIL,,29/03/2021,154618,3442,0,LAND CHARGE SEARCH ENQUIRIES HIGHWAYS,908000,Public Bodies Council support services
South Lakeland District Council,http://opendatacommunities.org/id/district-council/south-lakeland,31/03/2021,Business Support Community Services,Central Services,http://opendatacommunities.org/def/concept/finance/sercop/objective/102,LAKE DISTRICT NATIONAL PARK AUTHORITY,,15/03/2021,153777,3452.5,0,LAND CHARGE SEARCH ENQUIRIES LDNPA,201700,Financial Services Grants
South Lakeland District Council,http://opendatacommunities.org/id/district-council/south-lakeland,31/03/2021,Business Support Community Services,Cultural Environmental Regulatory & Planning Services,http://opendatacommunities.org/def/concept/finance/sercop/objective/104,Southfield RCV Services,,24/03/2021,154382,3461.27,0,Repairs,380000,Vehicle Management
South Lakeland District Council,http://opendatacommunities.org/id/district-council/south-lakeland,31/03/2021,Support Services,Highways & Transport Services,http://opendatacommunities.org/def/concept/finance/sercop/objective/107,Bloom Procurement Services Ltd,,03/03/2021,149146,3473.69,0,Arnside Parking Strategy,151900,Consultancy Management
South Lakeland District Council,http://opendatacommunities.org/id/district-council/south-lakeland,31/03/2021,Business Support Community Services,Central Services,http://opendatacommunities.org/def/concept/finance/sercop/objective/102,CUMBRIA COUNTY COUNCIL,,17/03/2021,153308,3874,0,LAND CHARGE SEARCH ENQUIRIES HIGHWAYS,908000,Public Bodies Council support services
South Lakeland District Council,http://opendatacommunities.org/id/district-council/south-lakeland,31/03/2021,Customer Services,Cultural Environmental Regulatory & Planning Services,http://opendatacommunities.org/def/concept/finance/sercop/objective/104,RIGHT 2 WORK,,22/03/2021,154146,3917,0,Bulky waste collection scheme 2020/21,321010,Social Care Adult Advice & Counselling
South Lakeland District Council,http://opendatacommunities.org/id/district-council/south-lakeland,31/03/2021,ICT Group,Central Services,http://opendatacommunities.org/def/concept/finance/sercop/objective/102,EDEN DISTRICT COUNCIL,,22/03/2021,154247,3937.5,0,o Revs and Bens Digital Project,908000,Public Bodies Council support services
South Lakeland District Council,http://opendatacommunities.org/id/district-council/south-lakeland,31/03/2021,Case Management,Central Services,http://opendatacommunities.org/def/concept/finance/sercop/objective/102,GRANTS- MISCELLANEOUS,,24/03/2021,154479,4000,0,Climate Change Community Fund,201700,Financial Services Grants
South Lakeland District Council,http://opendatacommunities.org/id/district-council/south-lakeland,31/03/2021,Case Management,Central Services,http://opendatacommunities.org/def/concept/finance/sercop/objective/102,GRANTS- MISCELLANEOUS,,24/03/2021,154506,4000,0,Climate Change Community Fund,201700,Financial Services Grants
South Lakeland District Council,http://opendatacommunities.org/id/district-council/south-lakeland,31/03/2021,Case Management Account Mgmt,Cultural Environmental Regulatory & Planning Services,http://opendatacommunities.org/def/concept/finance/sercop/objective/104,CONTINENTAL LANDSCAPES LTD,2108452,29/03/2021,153924,4020,0,? To remove the waste spoil from,391310,Construction Open Spaces Construction
South Lakeland District Council,http://opendatacommunities.org/id/district-council/south-lakeland,31/03/2021,Business Support Community Services,Cultural Environmental Regulatory & Planning Services,http://opendatacommunities.org/def/concept/finance/sercop/objective/104,ALLSTAR BUSINESS SOLUTIONS LTD (NCR),2631112,01/04/2021,154504,4045.17,0,Fuel to 15/03,381600,Vehicle Mgt Leasing
South Lakeland District Council,http://opendatacommunities.org/id/district-council/south-lakeland,31/03/2021,Case Management Account Mgmt,Cultural Environmental Regulatory & Planning Services,http://opendatacommunities.org/def/concept/finance/sercop/objective/104,CONTINENTAL LANDSCAPES LTD,2108452,01/03/2021,148693,4050.03,0,For gravedigging from April 2020 -,391310,Construction Open Spaces Construction
South Lakeland District Council,http://opendatacommunities.org/id/district-council/south-lakeland,31/03/2021,Case Management Account Mgmt,Cultural Environmental Regulatory & Planning Services,http://opendatacommunities.org/def/concept/finance/sercop/objective/104,CONTINENTAL LANDSCAPES LTD,2108452,07/04/2021,155304,4050.03,0,For gravedigging from April 2020 -,391310,Construction Open Spaces Construction
South Lakeland District Council,http://opendatacommunities.org/id/district-council/south-lakeland,31/03/2021,Business Support Community Services,Cultural Environmental Regulatory & Planning Services,http://opendatacommunities.org/def/concept/finance/sercop/objective/104,ALLSTAR BUSINESS SOLUTIONS LTD (NCR),2631112,01/03/2021,153852,4454.66,0,Fuel to 28/02,381600,Vehicle Mgt Leasing
South Lakeland District Council,http://opendatacommunities.org/id/district-council/south-lakeland,31/03/2021,Case Management Account Mgmt,Cultural Environmental Regulatory & Planning Services,http://opendatacommunities.org/def/concept/finance/sercop/objective/104,Greaves Tree Services,,07/04/2021,155275,4500,0,"Canal Towpath, Kendal - 5 sites",241600,Horticultural Trees & Shrubs
South Lakeland District Council,http://opendatacommunities.org/id/district-council/south-lakeland,31/03/2021,Westmorland Centre Parking Office,Housing Services,http://opendatacommunities.org/def/concept/finance/sercop/objective/108,CASTLE ALARMS 1981 LTD,9231500,10/03/2021,153277,4522,0,New door control at TVF,192212,Facilities Security Equipment
South Lakeland District Council,http://opendatacommunities.org/id/district-council/south-lakeland,31/03/2021,Business Support Community Services,Cultural Environmental Regulatory & Planning Services,http://opendatacommunities.org/def/concept/finance/sercop/objective/104,CUMBRIA COUNTY COUNCIL,,07/04/2021,154375,4601,0,Partnership officer,908000,Public Bodies Council support services
South Lakeland District Council,http://opendatacommunities.org/id/district-council/south-lakeland,31/03/2021,Business Support Community Services,Central Services,http://opendatacommunities.org/def/concept/finance/sercop/objective/102,CUMBRIA COUNTY COUNCIL,,17/03/2021,148589,4812,0,LAND CHARGE SEARCH ENQUIRIES HIGHWAYS,908000,Public Bodies Council support services
South Lakeland District Council,http://opendatacommunities.org/id/district-council/south-lakeland,31/03/2021,Support Services,Central Services,http://opendatacommunities.org/def/concept/finance/sercop/objective/102,TIAA Ltd,4546319,15/03/2021,148663,4924.95,0,20/21 Internal Audit Service,201100,Financial Services Audit
South Lakeland District Council,http://opendatacommunities.org/id/district-council/south-lakeland,31/03/2021,Support Services,Central Services,http://opendatacommunities.org/def/concept/finance/sercop/objective/102,TIAA Ltd,4546319,29/03/2021,153263,4924.95,0,20/21 Internal Audit Service,201100,Financial Services Audit
South Lakeland District Council,http://opendatacommunities.org/id/district-council/south-lakeland,31/03/2021,Case Management Regulatory,Central Services,http://opendatacommunities.org/def/concept/finance/sercop/objective/102,The Oyster Partnership,5020374,24/03/2021,153870,5000,0,Finders Fee for Mark Lynch,261300,HR Recruitment & Assessment
South Lakeland District Council,http://opendatacommunities.org/id/district-council/south-lakeland,31/03/2021,Case Management,Cultural Environmental Regulatory & Planning Services,http://opendatacommunities.org/def/concept/finance/sercop/objective/104,CUMBRIA COUNTY COUNCIL,,29/03/2021,154484,5000,0,Contribution to Kendal LCWIP,908000,Public Bodies Council support services
South Lakeland District Council,http://opendatacommunities.org/id/district-council/south-lakeland,31/03/2021,Case Management,Central Services,http://opendatacommunities.org/def/concept/finance/sercop/objective/102,CUMBRIA COUNTY COUNCIL,,29/03/2021,154484,5000,0,Contribution to Kendal LCWIP,908000,Public Bodies Council support services
South Lakeland District Council,http://opendatacommunities.org/id/district-council/south-lakeland,31/03/2021,Case Management,Central Services,http://opendatacommunities.org/def/concept/finance/sercop/objective/102,DBS Ltd (David Brett Solutions Ltd T/A),7160173,08/03/2021,148713,5189.68,0,720 Litre DC ONLY Portable System 0C,181812,Environment Technical Equip Testing
South Lakeland District Council,http://opendatacommunities.org/id/district-council/south-lakeland,31/03/2021,Business Support Community Services,SLDC as Agent,,Viewdeck Consulting Limited,,29/03/2021,154594,5370,0,Cumbria Choice Consultancy Work,150000,Consultancy
South Lakeland District Council,http://opendatacommunities.org/id/district-council/south-lakeland,31/03/2021,Business Support Community Services,Central Services,http://opendatacommunities.org/def/concept/finance/sercop/objective/102,CUMBRIA COUNTY COUNCIL,,01/03/2021,146422,5417,0,LAND CHARGE SEARCH ENQUIRIES HIGHWAYS,908000,Public Bodies Council support services
South Lakeland District Council,http://opendatacommunities.org/id/district-council/south-lakeland,31/03/2021,Support Services,Central Services,http://opendatacommunities.org/def/concept/finance/sercop/objective/102,APSE,6735100,29/03/2021,155045,5500,0,Climate Literacy Training for South,202100,Financial Services Subscriptions
South Lakeland District Council,http://opendatacommunities.org/id/district-council/south-lakeland,31/03/2021,Business Support Community Services,Central Services,http://opendatacommunities.org/def/concept/finance/sercop/objective/102,CUMBRIA COUNTY COUNCIL,,08/03/2021,148567,5590,0,LAND CHARGE SEARCH ENQUIRIES HIGHWAYS,908000,Public Bodies Council support services
South Lakeland District Council,http://opendatacommunities.org/id/district-council/south-lakeland,31/03/2021,Case Management People,SLDC as Agent,,SOUTH LAKES HOUSING,IP031419,22/03/2021,153879,5608.31,0,CBL Co-Ordinator Costs,191700,Facilities Property Management
South Lakeland District Council,http://opendatacommunities.org/id/district-council/south-lakeland,31/03/2021,Case Management People,Housing Services,http://opendatacommunities.org/def/concept/finance/sercop/objective/108,SOUTH LAKES HOUSING,IP031419,29/03/2021,154525,5784.05,0,Rent and repairs for Covid properties,191700,Facilities Property Management
South Lakeland District Council,http://opendatacommunities.org/id/district-council/south-lakeland,31/03/2021,Case Management Account Mgmt,Cultural Environmental Regulatory & Planning Services,http://opendatacommunities.org/def/concept/finance/sercop/objective/104,The Fifth Sector Limited,7539809,29/03/2021,155254,5797.6,0,First payment for The Bay Cultural,150000,Consultancy
South Lakeland District Council,http://opendatacommunities.org/id/district-council/south-lakeland,31/03/2021,Support Services,Central Services,http://opendatacommunities.org/def/concept/finance/sercop/objective/102,Idox Software Ltd,2933889,22/03/2021,153799,5895.53,0,"Eros network licenses, VDF license,",271600,ICT Software Customised & Bespoke
South Lakeland District Council,http://opendatacommunities.org/id/district-council/south-lakeland,31/03/2021,Support Services,Central Services,http://opendatacommunities.org/def/concept/finance/sercop/objective/102,Idox Software Ltd,2933889,22/03/2021,153799,5895.53,0,"Eros network licenses, VDF license,",271600,ICT Software Customised & Bespoke
South Lakeland District Council,http://opendatacommunities.org/id/district-council/south-lakeland,31/03/2021,Support Services,Transport,http://opendatacommunities.org/def/concept/finance/sercop/objective/107,John Wade Groundworks Ltd,4836715,15/03/2021,153731,5940.19,0,Resurfacing Red Bank - EV Works,100000,Building Construction materials
South Lakeland District Council,http://opendatacommunities.org/id/district-council/south-lakeland,31/03/2021,Case Management People,Housing Services,http://opendatacommunities.org/def/concept/finance/sercop/objective/108,KENDAL HOSTEL,,24/03/2021,154475,6270,0,Accommodatuon Kendal Hostel,261000,HR Accommodation
South Lakeland District Council,http://opendatacommunities.org/id/district-council/south-lakeland,31/03/2021,ICT Group,Central Services,http://opendatacommunities.org/def/concept/finance/sercop/objective/102,VODAFONE LIMITED,1471587,17/03/2021,149198,6784.3,0,"Mobile Phones, 4th quarter 2020/21",271800,ICT Telecommunications Mobile
South Lakeland District Council,http://opendatacommunities.org/id/district-council/south-lakeland,31/03/2021,Case Management People,SLDC as Agent,,SOUTH LAKES HOUSING,IP031419,22/03/2021,153880,6830.4,0,CBL Co-Ordinator costs,191700,Facilities Property Management
South Lakeland District Council,http://opendatacommunities.org/id/district-council/south-lakeland,31/03/2021,Case Management People,SLDC as Agent,,SOUTH LAKES HOUSING,IP031419,22/03/2021,153932,6965.4,0,CBL Co-Ordinator costs,191700,Facilities Property Management
South Lakeland District Council,http://opendatacommunities.org/id/district-council/south-lakeland,31/03/2021,Finance,Central Services,http://opendatacommunities.org/def/concept/finance/sercop/objective/102,Capita IB Solutions Ltd,1593831,01/03/2021,148574,7205.58,0,Purchase Ordering annual maintenance 1,271600,ICT Software Customised & Bespoke
South Lakeland District Council,http://opendatacommunities.org/id/district-council/south-lakeland,31/03/2021,ICT Group,Central Services,http://opendatacommunities.org/def/concept/finance/sercop/objective/102,IT PROFESSIONAL SERVICES (ITPS),,17/03/2021,153873,7314.4,0,SIP Rental and Calls covers 1/4/21 to,279999,ICT Not Elsewhere Classified
South Lakeland District Council,http://opendatacommunities.org/id/district-council/south-lakeland,31/03/2021,Support Services,Central Services,http://opendatacommunities.org/def/concept/finance/sercop/objective/102,Bloom Procurement Services Ltd,,29/03/2021,154267,7500,0,Lowther Street Feasibility Study,151900,Consultancy Management
South Lakeland District Council,http://opendatacommunities.org/id/district-council/south-lakeland,31/03/2021,Support Services,Central Services,http://opendatacommunities.org/def/concept/finance/sercop/objective/102,Idox Software Ltd,2933889,22/03/2021,147514,8525.62,0,Quotation Reference:,271600,ICT Software Customised & Bespoke
South Lakeland District Council,http://opendatacommunities.org/id/district-council/south-lakeland,31/03/2021,Case Management Account Mgmt,Central Services,http://opendatacommunities.org/def/concept/finance/sercop/objective/102,CAPITA BUSINESS SERVICES LTD,2299747,22/03/2021,153809,9115,0,Development Fund 2021/22,261500,HR Training & Conferences
South Lakeland District Council,http://opendatacommunities.org/id/district-council/south-lakeland,31/03/2021,ICT Group,Central Services,http://opendatacommunities.org/def/concept/finance/sercop/objective/102,Pentest People Limited,,08/03/2021,149166,9750,0,IT Health check - SLDC - Year 1,279999,ICT Not Elsewhere Classified
South Lakeland District Council,http://opendatacommunities.org/id/district-council/south-lakeland,31/03/2021,Human Resources,Central Services,http://opendatacommunities.org/def/concept/finance/sercop/objective/102,Reach Printing Services Limited,2064914,22/03/2021,153878,9927.03,0,South Lakeland News Printing Cost,191600,Facilities Printing
South Lakeland District Council,http://opendatacommunities.org/id/district-council/south-lakeland,31/03/2021,Case Management Account Mgmt,Highways & Transport Services,http://opendatacommunities.org/def/concept/finance/sercop/objective/107,Taranto Systems Limited,1383511,22/03/2021,153808,10374.2,0,Contract extension to Annual Licence,351000,Street & Traffic Parking Car Parks
South Lakeland District Council,http://opendatacommunities.org/id/district-council/south-lakeland,31/03/2021,Support Services,Transport Planning Policy,http://opendatacommunities.org/def/concept/finance/sercop/objective/107,Bloom Procurement Services Ltd,,29/03/2021,154263,10384.37,0,North Lonsdale Road Masterplan,151900,Consultancy Management
South Lakeland District Council,http://opendatacommunities.org/id/district-council/south-lakeland,31/03/2021,Finance,Central Services,http://opendatacommunities.org/def/concept/finance/sercop/objective/102,CAPITA BUSINESS SERVICES LTD,2299747,29/03/2021,154304,10597.5,0,Upgrade of AIM/ Paye.net and ER to,261500,HR Training & Conferences
South Lakeland District Council,http://opendatacommunities.org/id/district-council/south-lakeland,31/03/2021,Business Support Community Services,Cultural Environmental Regulatory & Planning Services,http://opendatacommunities.org/def/concept/finance/sercop/objective/104,ALLSTAR BUSINESS SOLUTIONS LTD (NCR),2631112,01/03/2021,153852,10607.67,0,Fuel to 28/02,381600,Vehicle Mgt Leasing
South Lakeland District Council,http://opendatacommunities.org/id/district-council/south-lakeland,31/03/2021,Support Services,Central Services,http://opendatacommunities.org/def/concept/finance/sercop/objective/102,CIVICA UK LTD,1628868,15/03/2021,153291,10611.68,0,Modern.gov Annual Licenses Support and,271600,ICT Software Customised & Bespoke
South Lakeland District Council,http://opendatacommunities.org/id/district-council/south-lakeland,31/03/2021,Support Services,Transport,http://opendatacommunities.org/def/concept/finance/sercop/objective/107,Bloom Procurement Services Ltd,,01/03/2021,148590,10671.05,0,"WSC, Kendal - Concrete & Decking Repairs",151900,Consultancy Management
South Lakeland District Council,http://opendatacommunities.org/id/district-council/south-lakeland,31/03/2021,Case Management Account Mgmt,Cultural Environmental Regulatory & Planning Services,http://opendatacommunities.org/def/concept/finance/sercop/objective/104,CONTINENTAL LANDSCAPES LTD,2108452,03/03/2021,148699,10718.95,0,Parks Routine Maintenance from April,391310,Construction Open Spaces Construction
South Lakeland District Council,http://opendatacommunities.org/id/district-council/south-lakeland,31/03/2021,Case Management Account Mgmt,Cultural Environmental Regulatory & Planning Services,http://opendatacommunities.org/def/concept/finance/sercop/objective/104,CONTINENTAL LANDSCAPES LTD,2108452,07/04/2021,155302,10718.95,0,Parks Routine Maintenance from April,391310,Construction Open Spaces Construction
South Lakeland District Council,http://opendatacommunities.org/id/district-council/south-lakeland,31/03/2021,Support Services,Central Services,http://opendatacommunities.org/def/concept/finance/sercop/objective/102,GRANT THORNTON UK LLP,OC307742,10/03/2021,153213,10751.25,0,20/21 External Audit Service,201000,Financial Services Accountancy
South Lakeland District Council,http://opendatacommunities.org/id/district-council/south-lakeland,31/03/2021,Business Support Community Services,Cultural Environmental Regulatory & Planning Services,http://opendatacommunities.org/def/concept/finance/sercop/objective/104,ALLSTAR BUSINESS SOLUTIONS LTD (NCR),2631112,01/04/2021,154504,13809.57,0,Fuel to 15/03,381600,Vehicle Mgt Leasing
South Lakeland District Council,http://opendatacommunities.org/id/district-council/south-lakeland,31/03/2021,Support Services,Other Items,,LAKE DISTRICT NATIONAL PARK AUTHORITY,,07/04/2021,154581,17000,0,RHSS Grant via MHCLG,201700,Financial Services Grants
South Lakeland District Council,http://opendatacommunities.org/id/district-council/south-lakeland,31/03/2021,Support Services,Central Services,http://opendatacommunities.org/def/concept/finance/sercop/objective/102,CUMBRIA COUNTY COUNCIL,,29/03/2021,153914,17442,0,Emergency Planning SLA for 2020/21:,908000,Public Bodies Council support services
South Lakeland District Council,http://opendatacommunities.org/id/district-council/south-lakeland,31/03/2021,Support Services,Cultural Environmental Regulatory & Planning Services,http://opendatacommunities.org/def/concept/finance/sercop/objective/104,POLICE & CRIME COMMISSIONER,,24/03/2021,154416,18858,0,2021/22 Contribution to the bridgeway,350100,Street & Traffic Closed-Circuit TV
South Lakeland District Council,http://opendatacommunities.org/id/district-council/south-lakeland,31/03/2021,Case Management People,Housing Services,http://opendatacommunities.org/def/concept/finance/sercop/objective/108,IMPACT HOUSING ASSOCIATION LTD,IP21411R,15/03/2021,153730,19600,0,Tenancy Sustainability Officer,250000,Housing
South Lakeland District Council,http://opendatacommunities.org/id/district-council/south-lakeland,31/03/2021,Case Management Account Mgmt,Central Services,http://opendatacommunities.org/def/concept/finance/sercop/objective/102,CAPITA BUSINESS SERVICES LTD,2299747,22/03/2021,154258,20550,0,Capita Payment Systems Maintenance,261500,HR Training & Conferences
South Lakeland District Council,http://opendatacommunities.org/id/district-council/south-lakeland,31/03/2021,Support Services,Highways & Transport Services,http://opendatacommunities.org/def/concept/finance/sercop/objective/107,Bloom Procurement Services Ltd,,07/04/2021,155256,22169.41,0,The Glebe Masterplan,151900,Consultancy Management
South Lakeland District Council,http://opendatacommunities.org/id/district-council/south-lakeland,31/03/2021,Policy & Partnerships,Central Services,http://opendatacommunities.org/def/concept/finance/sercop/objective/102,MERITEC LTD,3224622,29/03/2021,148704,26000,0,MPLS Data Link (SLDC and EDC) to,391200,Construction Engineering
South Lakeland District Council,http://opendatacommunities.org/id/district-council/south-lakeland,31/03/2021,Support Services,SLDC as Agent,,BOROUGH OF BARROW IN FURNESS,,29/03/2021,154613,27416.62,0,Remaining ATTIC funding held at SLDC,908999,Public Bodies Not Elsewhere Classified
South Lakeland District Council,http://opendatacommunities.org/id/district-council/south-lakeland,31/03/2021,Support Services,Central Services,http://opendatacommunities.org/def/concept/finance/sercop/objective/102,Cumbria Action for Sustainability,6492907,07/04/2021,155288,50000,0,Grant funding for community carbon,201700,Financial Services Grants
South Lakeland District Council,http://opendatacommunities.org/id/district-council/south-lakeland,31/03/2021,Support Services,Central Services,http://opendatacommunities.org/def/concept/finance/sercop/objective/102,Bloom Procurement Services Ltd,,10/03/2021,149144,50091.25,0,SL House/KTH RIBA Stage 5 & 6,151900,Consultancy Management
South Lakeland District Council,http://opendatacommunities.org/id/district-council/south-lakeland,31/03/2021,Case Management Account Mgmt,Cultural Environmental Regulatory & Planning Services,http://opendatacommunities.org/def/concept/finance/sercop/objective/104,CONTINENTAL LANDSCAPES LTD,2108452,07/04/2021,155302,51048.56,0,Parks Routine Maintenance from April,391310,Construction Open Spaces Construction
South Lakeland District Council,http://opendatacommunities.org/id/district-council/south-lakeland,31/03/2021,Case Management Account Mgmt,Cultural Environmental Regulatory & Planning Services,http://opendatacommunities.org/def/concept/finance/sercop/objective/104,CONTINENTAL LANDSCAPES LTD,2108452,03/03/2021,148699,51048.99,0,Parks Routine Maintenance from April,391310,Construction Open Spaces Construction
South Lakeland District Council,http://opendatacommunities.org/id/district-council/south-lakeland,31/03/2021,Case Management Account Mgmt,Central Services,http://opendatacommunities.org/def/concept/finance/sercop/objective/102,CAPITA BUSINESS SERVICES LTD,2299747,22/03/2021,153780,52855,0,Software Maintenance for Revenues,261500,HR Training & Conferences
South Lakeland District Council,http://opendatacommunities.org/id/district-council/south-lakeland,31/03/2021,Policy & Partnerships,Central Services,http://opendatacommunities.org/def/concept/finance/sercop/objective/102,MERITEC LTD,3224622,29/03/2021,149149,56000,0,MPLS Data Link (SLDC and EDC) to,391200,Construction Engineering
South Lakeland District Council,http://opendatacommunities.org/id/district-council/south-lakeland,31/03/2021,Support Services,Central Services,http://opendatacommunities.org/def/concept/finance/sercop/objective/102,CUMBRIA LGPS,,07/04/2021,155305,68733.92,0,20/21 CCC Contribution re. past pensions,908999,Public Bodies Not Elsewhere Classified
South Lakeland District Council,http://opendatacommunities.org/id/district-council/south-lakeland,31/03/2021,Support Services,Central Services,http://opendatacommunities.org/def/concept/finance/sercop/objective/102,LAMBERT SMITH HAMPTON GROUP,2521225,15/03/2021,153737,80268.66,0,Property Service Contract (Apr - Sept),191700,Facilities Property Management
South Lakeland District Council,http://opendatacommunities.org/id/district-council/south-lakeland,31/03/2021,Case Management Account Mgmt,Culture and Related Serv,http://opendatacommunities.org/def/concept/finance/sercop/objective/104,KOMPAN Scotland Ltd,SC127228,17/03/2021,154241,84044.29,0,Supply and installation of new,331000,Sports Playground Equipment
South Lakeland District Council,http://opendatacommunities.org/id/district-council/south-lakeland,31/03/2021,Support Services,Environment Regulatory,,SSCL (Environment Agency),,08/03/2021,149172,283452.55,0,North Kendal Industrial Area Flood,180000,Environmental Services
South Lakeland District Council,http://opendatacommunities.org/id/district-council/south-lakeland,31/03/2021,Case Management Account Mgmt,Central Services,http://opendatacommunities.org/def/concept/finance/sercop/objective/102,Caddick Construction (NW) Limited,,29/03/2021,154463,345412.62,0,Contract number NW127 - Refurbishment,391100,Construction Buildings
